{"text_format":"3","workbook":"xlsx","n_sheets":4,"sheets":["Evidencia výsledkov","Vaše výsledky","Nastavenie","Výpočty"],"not_rendered":{"defined_names":3,"comments":1},"read":"whole","date_system":"1900"}

{"sheet":"Evidencia výsledkov","index":0,"n_rows":14,"n_cols":32,"rows_kept":14}
[null,"Sem zadajte svoje výsledky"]
[]
[null,null,"Predmet","Typ","Popis","Výsledky"]
[null,null,"Súčasná francúzština","Domáce úlohy","Dejiny druhej svetovej vojny",{"v":0.8,"d":"80%"}]
[null,null,"Pokročilé programovanie v jazyku Java","Stred semestra",null,{"v":0.75,"d":"75%"}]
[null,null,"Španielčina","Domáce úlohy",null,{"v":0.5,"d":"50%"},{"$nulls":25},{"$f":"IFERROR(AVERAGEIFS(tblZnámkyZaPredmety[Výsledky],tblZnámkyZaPredmety[Predmet],Výpočty!$C6,'Evidencia výsledkov'!D4:E10,Výpočty!AF$5)*Nastavenie!H9,\"\")","v":""}]
[null,null,"Teoretická fyzika","Domáce úlohy",null,{"v":0.95,"d":"95%"}]
[null,null,"Súčasná francúzština","Domáce úlohy","Dejiny prvej svetovej vojny",{"v":0.9,"d":"90%"}]
[null,null,"Súčasná francúzština","Domáce úlohy","Strany 30 – 41",{"v":0.8,"d":"80%"}]
[null,null,"Tvorivé písanie","Esej","Argumentačná esej",{"v":0.95,"d":"95%"}]
[null,null,"Matematika 1","Domáce úlohy","Strany 21 – 26",{"v":0.8,"d":"80%"}]
[null,null,"Matematika 2","Domáce úlohy","Strany 15 – 18",{"v":0.85,"d":"85%"}]
[null,null,"Matematika 1","Domáce úlohy","Strany 34 – 36",{"v":0.8,"d":"80%"}]
[null,null,"Matematika 2","Test",null,{"v":0.95,"d":"95%"}]

{"sheet":"Vaše výsledky","index":1,"n_rows":31,"n_cols":8,"rows_kept":31}
[null,"Vaše výsledky"]
[]
[null,null,"Celkovo"]
[null,null,{"$f":"\"Hodiny: \"&SUM(tblTriedy[Kreditová dotácia])","v":"Hodiny: 24"},{"$f":"AVERAGE(D7:D31)","v":{"v":0.8104761904761906,"d":"81%"}},{"$f":"AVERAGE(E7:E31)","v":{"v":2.7142857142857144,"d":"2.71"}},{"$f":"SUM(F7:F31)","v":{"v":2.625,"d":"2.63"}},{"$f":"IFERROR(HLOOKUP(D4,lstSledovanieŠtudijnéhoPriemeru,2),\"\")","v":"B-"}]
[]
[null,null,"Predmety","%","Študijný priemer","Vážený študijný priemer","Známka","Celkové výsledky"]
[null,null,{"$f":"Výpočty!C6","v":"Súčasná francúzština"},{"$f":"Výpočty!AL6","v":{"v":0.8333333333333334,"d":"83%"}},{"$f":"Výpočty!AM6","v":{"v":3,"d":"3.00"}},{"$f":"IFERROR(E7*Nastavenie!D9/SUM(tblTriedy[Kreditová dotácia]),\"\")","v":{"v":0.375,"d":"0.38"}},{"$f":"Výpočty!AN6","v":"B"}]
[null,null,{"$f":"Výpočty!C7","v":"Teoretická fyzika"},{"$f":"Výpočty!AL7","v":{"v":0.95,"d":"95%"}},{"$f":"Výpočty!AM7","v":{"v":4,"d":"4.00"}},{"$f":"IFERROR(E8*Nastavenie!D10/SUM(tblTriedy[Kreditová dotácia]),\"\")","v":{"v":0.5,"d":"0.50"}},{"$f":"Výpočty!AN7","v":"A"}]
[null,null,{"$f":"Výpočty!C8","v":"Matematika 1"},{"$f":"Výpočty!AL8","v":{"v":0.8000000000000002,"d":"80%"}},{"$f":"Výpočty!AM8","v":2.67},{"$f":"IFERROR(E9*Nastavenie!D11/SUM(tblTriedy[Kreditová dotácia]),\"\")","v":{"v":0.445,"d":"0.45"}},{"$f":"Výpočty!AN8","v":"B-"}]
[null,null,{"$f":"Výpočty!C9","v":"Matematika 2"},{"$f":"Výpočty!AL9","v":{"v":0.89,"d":"89%"}},{"$f":"Výpočty!AM9","v":3.33},{"$f":"IFERROR(E10*Nastavenie!D12/SUM(tblTriedy[Kreditová dotácia]),\"\")","v":{"v":0.555,"d":"0.56"}},{"$f":"Výpočty!AN9","v":"B+"}]
[null,null,{"$f":"Výpočty!C10","v":"Pokročilé programovanie v jazyku Java"},{"$f":"Výpočty!AL10","v":{"v":0.7500000000000001,"d":"75%"}},{"$f":"Výpočty!AM10","v":{"v":2,"d":"2.00"}},{"$f":"IFERROR(E11*Nastavenie!D13/SUM(tblTriedy[Kreditová dotácia]),\"\")","v":{"v":0.4166666666666667,"d":"0.42"}},{"$f":"Výpočty!AN10","v":"C"}]
[null,null,{"$f":"Výpočty!C11","v":"Španielčina"},{"$f":"Výpočty!AL11","v":{"v":0.5,"d":"50%"}},{"$f":"Výpočty!AM11","v":{"v":0,"d":"0.00"}},{"$f":"IFERROR(E12*Nastavenie!D14/SUM(tblTriedy[Kreditová dotácia]),\"\")","v":{"v":0,"d":"0.00"}},{"$f":"Výpočty!AN11","v":"FX"}]
[null,null,{"$f":"Výpočty!C12","v":"Tvorivé písanie"},{"$f":"Výpočty!AL12","v":{"v":0.95,"d":"95%"}},{"$f":"Výpočty!AM12","v":{"v":4,"d":"4.00"}},{"$f":"IFERROR(E13*Nastavenie!D15/SUM(tblTriedy[Kreditová dotácia]),\"\")","v":{"v":0.3333333333333333,"d":"0.33"}},{"$f":"Výpočty!AN12","v":"A"}]
[null,null,{"$f":"Výpočty!C13","v":""},{"$f":"Výpočty!AL13","v":""},{"$f":"Výpočty!AM13","v":""},{"$f":"IFERROR(E14*Nastavenie!D16/SUM(tblTriedy[Kreditová dotácia]),\"\")","v":""},{"$f":"Výpočty!AN13","v":""}]
[null,null,{"$f":"Výpočty!C14","v":""},{"$f":"Výpočty!AL14","v":""},{"$f":"Výpočty!AM14","v":""},{"$f":"IFERROR(E15*Nastavenie!D17/SUM(tblTriedy[Kreditová dotácia]),\"\")","v":""},{"$f":"Výpočty!AN14","v":""}]
[null,null,{"$f":"Výpočty!C15","v":""},{"$f":"Výpočty!AL15","v":""},{"$f":"Výpočty!AM15","v":""},{"$f":"IFERROR(E16*Nastavenie!D18/SUM(tblTriedy[Kreditová dotácia]),\"\")","v":""},{"$f":"Výpočty!AN15","v":""}]
[null,null,{"$f":"Výpočty!C16","v":""},{"$f":"Výpočty!AL16","v":""},{"$f":"Výpočty!AM16","v":""},{"$f":"IFERROR(E17*Nastavenie!D19/SUM(tblTriedy[Kreditová dotácia]),\"\")","v":""},{"$f":"Výpočty!AN16","v":""}]
[null,null,{"$f":"Výpočty!C17","v":""},{"$f":"Výpočty!AL17","v":""},{"$f":"Výpočty!AM17","v":""},{"$f":"IFERROR(E18*Nastavenie!D20/SUM(tblTriedy[Kreditová dotácia]),\"\")","v":""},{"$f":"Výpočty!AN17","v":""}]
[null,null,{"$f":"Výpočty!C18","v":""},{"$f":"Výpočty!AL18","v":""},{"$f":"Výpočty!AM18","v":""},{"$f":"IFERROR(E19*Nastavenie!D21/SUM(tblTriedy[Kreditová dotácia]),\"\")","v":""},{"$f":"Výpočty!AN18","v":""}]
[null,null,{"$f":"Výpočty!C19","v":""},{"$f":"Výpočty!AL19","v":""},{"$f":"Výpočty!AM19","v":""},{"$f":"IFERROR(E20*Nastavenie!D22/SUM(tblTriedy[Kreditová dotácia]),\"\")","v":""},{"$f":"Výpočty!AN19","v":""}]
[null,null,{"$f":"Výpočty!C20","v":""},{"$f":"Výpočty!AL20","v":""},{"$f":"Výpočty!AM20","v":""},{"$f":"IFERROR(E21*Nastavenie!D23/SUM(tblTriedy[Kreditová dotácia]),\"\")","v":""},{"$f":"Výpočty!AN20","v":""}]
[null,null,{"$f":"Výpočty!C21","v":""},{"$f":"Výpočty!AL21","v":""},{"$f":"Výpočty!AM21","v":""},{"$f":"IFERROR(E22*Nastavenie!D24/SUM(tblTriedy[Kreditová dotácia]),\"\")","v":""},{"$f":"Výpočty!AN21","v":""}]
[null,null,{"$f":"Výpočty!C22","v":""},{"$f":"Výpočty!AL22","v":""},{"$f":"Výpočty!AM22","v":""},{"$f":"IFERROR(E23*Nastavenie!D25/SUM(tblTriedy[Kreditová dotácia]),\"\")","v":""},{"$f":"Výpočty!AN22","v":""}]
[null,null,{"$f":"Výpočty!C23","v":""},{"$f":"Výpočty!AL23","v":""},{"$f":"Výpočty!AM23","v":""},{"$f":"IFERROR(E24*Nastavenie!D26/SUM(tblTriedy[Kreditová dotácia]),\"\")","v":""},{"$f":"Výpočty!AN23","v":""}]
[null,null,{"$f":"Výpočty!C24","v":""},{"$f":"Výpočty!AL24","v":""},{"$f":"Výpočty!AM24","v":""},{"$f":"IFERROR(E25*Nastavenie!D27/SUM(tblTriedy[Kreditová dotácia]),\"\")","v":""},{"$f":"Výpočty!AN24","v":""}]
[null,null,{"$f":"Výpočty!C25","v":""},{"$f":"Výpočty!AL25","v":""},{"$f":"Výpočty!AM25","v":""},{"$f":"IFERROR(E26*Nastavenie!D28/SUM(tblTriedy[Kreditová dotácia]),\"\")","v":""},{"$f":"Výpočty!AN25","v":""}]
[null,null,{"$f":"Výpočty!C26","v":""},{"$f":"Výpočty!AL26","v":""},{"$f":"Výpočty!AM26","v":""},{"$f":"IFERROR(E27*Nastavenie!D29/SUM(tblTriedy[Kreditová dotácia]),\"\")","v":""},{"$f":"Výpočty!AN26","v":""}]
[null,null,{"$f":"Výpočty!C27","v":""},{"$f":"Výpočty!AL27","v":""},{"$f":"Výpočty!AM27","v":""},{"$f":"IFERROR(E28*Nastavenie!D30/SUM(tblTriedy[Kreditová dotácia]),\"\")","v":""},{"$f":"Výpočty!AN27","v":""}]
[null,null,{"$f":"Výpočty!C28","v":""},{"$f":"Výpočty!AL28","v":""},{"$f":"Výpočty!AM28","v":""},{"$f":"IFERROR(E29*Nastavenie!D31/SUM(tblTriedy[Kreditová dotácia]),\"\")","v":""},{"$f":"Výpočty!AN28","v":""}]
[null,null,{"$f":"Výpočty!C29","v":""},{"$f":"Výpočty!AL29","v":""},{"$f":"Výpočty!AM29","v":""},{"$f":"IFERROR(E30*Nastavenie!D32/SUM(tblTriedy[Kreditová dotácia]),\"\")","v":""},{"$f":"Výpočty!AN29","v":""}]
[null,null,{"$f":"Výpočty!C30","v":""},{"$f":"Výpočty!AL30","v":""},{"$f":"Výpočty!AM30","v":""},{"$f":"IFERROR(E31*Nastavenie!D33/SUM(tblTriedy[Kreditová dotácia]),\"\")","v":""},{"$f":"Výpočty!AN30","v":""}]

{"sheet":"Nastavenie","index":2,"n_rows":15,"n_cols":16,"rows_kept":15,"merged":[[5,2,5,15]]}
[null,"Nastavenie"]
[null,null,"Sledovanie výsledkov a študijného priemeru"]
[null,null,"Percentuálna hodnota",{"v":0,"d":"0%"},{"v":0.6,"d":"60%"},{"v":0.63,"d":"63%"},{"v":0.67,"d":"67%"},{"v":0.7,"d":"70%"},{"v":0.73,"d":"73%"},{"v":0.77,"d":"77%"},{"v":0.8,"d":"80%"},{"v":0.83,"d":"83%"},{"v":0.87,"d":"87%"},{"v":0.9,"d":"90%"},{"v":0.93,"d":"93%"},{"v":0.97,"d":"97%"}]
[null,null,"Známka","FX","D-","D","D+","C-","C","C+","B-","B","B+","A-","A","A+"]
[null,null,"Študijný priemer",0,0.67,1,1.33,1.67,2,2.33,2.67,3,3.33,3.67,4,4]
[]
[null,null,"Vážený priemer až v 25 predmetoch"]
[null,null,"Zapísané predmety","Kreditová dotácia","Domáce úlohy","Esej","Test","Projekt","Stred semestra","Záverečná skúška","Iné","Celkovo v %"]
[null,null,"Súčasná francúzština",{"v":3,"d":"3.0"},{"v":0.1,"d":"10%"},{"v":0.15,"d":"15%"},{"v":0.15,"d":"15%"},{"v":0.1,"d":"10%"},{"v":0.2,"d":"20%"},{"v":0.3,"d":"30%"},null,{"$f":"SUM(tblTriedy[[#This Row],[Domáce úlohy]:[Iné]])","v":{"v":1,"d":"100%"}}]
[null,null,"Teoretická fyzika",{"v":3,"d":"3.0"},{"v":0.15,"d":"15%"},{"v":0.15,"d":"15%"},{"v":0.1,"d":"10%"},{"v":0.1,"d":"10%"},{"v":0.15,"d":"15%"},{"v":0.3,"d":"30%"},{"v":0.05,"d":"5%"},{"$f":"SUM(tblTriedy[[#This Row],[Domáce úlohy]:[Iné]])","v":{"v":1,"d":"100%"}}]
[null,null,"Matematika 1",{"v":4,"d":"4.0"},{"v":0.1,"d":"10%"},{"v":0.15,"d":"15%"},{"v":0.15,"d":"15%"},{"v":0.1,"d":"10%"},{"v":0.2,"d":"20%"},{"v":0.3,"d":"30%"},null,{"$f":"SUM(tblTriedy[[#This Row],[Domáce úlohy]:[Iné]])","v":{"v":1,"d":"100%"}}]
[null,null,"Matematika 2",{"v":4,"d":"4.0"},{"v":0.15,"d":"15%"},{"v":0.15,"d":"15%"},{"v":0.1,"d":"10%"},{"v":0.1,"d":"10%"},{"v":0.15,"d":"15%"},{"v":0.3,"d":"30%"},{"v":0.05,"d":"5%"},{"$f":"SUM(tblTriedy[[#This Row],[Domáce úlohy]:[Iné]])","v":{"v":1,"d":"100%"}}]
[null,null,"Pokročilé programovanie v jazyku Java",{"v":5,"d":"5.0"},{"v":0.15,"d":"15%"},{"v":0.15,"d":"15%"},{"v":0.1,"d":"10%"},{"v":0.1,"d":"10%"},{"v":0.2,"d":"20%"},{"v":0.3,"d":"30%"},null,{"$f":"SUM(tblTriedy[[#This Row],[Domáce úlohy]:[Iné]])","v":{"v":1,"d":"100%"}}]
[null,null,"Španielčina",{"v":3,"d":"3.0"},{"v":0.1,"d":"10%"},{"v":0.15,"d":"15%"},{"v":0.17,"d":"17%"},{"v":0.13,"d":"13%"},{"v":0.2,"d":"20%"},{"v":0.2,"d":"20%"},{"v":0.05,"d":"5%"},{"$f":"SUM(tblTriedy[[#This Row],[Domáce úlohy]:[Iné]])","v":{"v":1,"d":"100%"}}]
[null,null,"Tvorivé písanie",{"v":2,"d":"2.0"},{"v":0.15,"d":"15%"},{"v":0.15,"d":"15%"},{"v":0.12,"d":"12%"},{"v":0.15,"d":"15%"},{"v":0.15,"d":"15%"},{"v":0.25,"d":"25%"},{"v":0.03,"d":"3%"},{"$f":"SUM(tblTriedy[[#This Row],[Domáce úlohy]:[Iné]])","v":{"v":1,"d":"100%"}}]

{"sheet":"Výpočty","index":3,"n_rows":657,"n_cols":40,"rows_kept":657,"hidden":true}
[null,"Výpočty"]
[null,null,"Tento hárok slúži na výpočet známok a váženého študijného priemeru a mal by zostať skrytý. Zmeny v tomto hárku môžu viesť k chybám."]
[]
[null,null,"Zoznam navštevovaných predmetov","Hodnotenie (z 1)",{"$nulls":24},"Výpočet známky"]
[null,null,"Predmet",1,2,3,4,5,6,7,8,9,10,11,12,13,14,15,16,17,18,19,20,21,22,23,24,25,{"$f":"tblTriedy[[#Headers],[Domáce úlohy]]","v":"Domáce úlohy"},{"$f":"tblTriedy[[#Headers],[Esej]]","v":"Esej"},{"$f":"tblTriedy[[#Headers],[Test]]","v":"Test"},{"$f":"tblTriedy[[#Headers],[Projekt]]","v":"Projekt"},{"$f":"tblTriedy[[#Headers],[Stred semestra]]","v":"Stred semestra"},{"$f":"tblTriedy[[#Headers],[Záverečná skúška]]","v":"Záverečná skúška"},{"$f":"tblTriedy[[#Headers],[Iné]]","v":"Iné"},"Celkom","Plný počet bodov","Celkovo v %","Bodové hodnotenie","Známka"]
[null,null,{"$f":"IF(Nastavenie!C9=\"\",\"\",Nastavenie!C9)","v":"Súčasná francúzština"},{"$f":"IFERROR(INDEX(tblZnámkyZaPredmety[],MATCH($C6:$C30&D$5:AB$5,Výpočty!$C$33:$C$657,0),4),\"\")","v":{"v":0.8,"d":"80%"}},{"v":0.9,"d":"90%"},{"v":0.8,"d":"80%"},"","","","","","","","","","","","","","","","","","","","","","",{"$f":"IFERROR(AVERAGEIFS(tblZnámkyZaPredmety[Výsledky],tblZnámkyZaPredmety[Predmet],Výpočty!$C6,tblZnámkyZaPredmety[Typ],Výpočty!AC$5)*Nastavenie!E9,\"\")","v":0.08333333333333334},{"$f":"IFERROR(AVERAGEIFS(tblZnámkyZaPredmety[Výsledky],tblZnámkyZaPredmety[Predmet],Výpočty!$C6,tblZnámkyZaPredmety[Typ],Výpočty!AD$5)*Nastavenie!F9,\"\")","v":""},{"$f":"IFERROR(AVERAGEIFS(tblZnámkyZaPredmety[Výsledky],tblZnámkyZaPredmety[Predmet],Výpočty!$C6,tblZnámkyZaPredmety[Typ],Výpočty!AE$5)*Nastavenie!G9,\"\")","v":""},{"$f":"IFERROR(AVERAGEIFS(tblZnámkyZaPredmety[Výsledky],tblZnámkyZaPredmety[Predmet],Výpočty!$C6,tblZnámkyZaPredmety[Typ],Výpočty!AF$5)*Nastavenie!H9,\"\")","v":""},{"$f":"IFERROR(AVERAGEIFS(tblZnámkyZaPredmety[Výsledky],tblZnámkyZaPredmety[Predmet],Výpočty!$C6,tblZnámkyZaPredmety[Typ],Výpočty!AG$5)*Nastavenie!I9,\"\")","v":""},{"$f":"IFERROR(AVERAGEIFS(tblZnámkyZaPredmety[Výsledky],tblZnámkyZaPredmety[Predmet],Výpočty!$C6,tblZnámkyZaPredmety[Typ],Výpočty!AH$5)*Nastavenie!J9,\"\")","v":""},{"$f":"IFERROR(AVERAGEIFS(tblZnámkyZaPredmety[Výsledky],tblZnámkyZaPredmety[Predmet],Výpočty!$C6,tblZnámkyZaPredmety[Typ],Výpočty!AI$5)*Nastavenie!K9,\"\")","v":""},{"$f":"SUM(AC6:AI6)","v":0.08333333333333334},{"$f":"SUMIFS(Nastavenie!E9:K9,Výpočty!AC6:AI6,\">0\")","v":0.1},{"$f":"IFERROR(AJ6/AK6,\"\")","v":{"v":0.8333333333333334,"d":"83%"}},{"$f":"IFERROR(HLOOKUP(AL6,lstSledovanieŠtudijnéhoPriemeru,3),\"\")","v":3},{"$f":"IFERROR(HLOOKUP(AL6,lstSledovanieŠtudijnéhoPriemeru,2),\"\")","v":"B"}]
[null,null,{"$f":"IF(Nastavenie!C10=\"\",\"\",Nastavenie!C10)","v":"Teoretická fyzika"},{"v":0.95,"d":"95%"},"","","","","","","","","","","","","","","","","","","","","","","","",{"$f":"IFERROR(AVERAGEIFS(tblZnámkyZaPredmety[Výsledky],tblZnámkyZaPredmety[Predmet],Výpočty!$C7,tblZnámkyZaPredmety[Typ],Výpočty!AC$5)*Nastavenie!E10,\"\")","v":0.1425},{"$f":"IFERROR(AVERAGEIFS(tblZnámkyZaPredmety[Výsledky],tblZnámkyZaPredmety[Predmet],Výpočty!$C7,tblZnámkyZaPredmety[Typ],Výpočty!AD$5)*Nastavenie!F10,\"\")","v":""},{"$f":"IFERROR(AVERAGEIFS(tblZnámkyZaPredmety[Výsledky],tblZnámkyZaPredmety[Predmet],Výpočty!$C7,tblZnámkyZaPredmety[Typ],Výpočty!AE$5)*Nastavenie!G10,\"\")","v":""},{"$f":"IFERROR(AVERAGEIFS(tblZnámkyZaPredmety[Výsledky],tblZnámkyZaPredmety[Predmet],Výpočty!$C7,tblZnámkyZaPredmety[Typ],Výpočty!AF$5)*Nastavenie!H10,\"\")","v":""},{"$f":"IFERROR(AVERAGEIFS(tblZnámkyZaPredmety[Výsledky],tblZnámkyZaPredmety[Predmet],Výpočty!$C7,tblZnámkyZaPredmety[Typ],Výpočty!AG$5)*Nastavenie!I10,\"\")","v":""},{"$f":"IFERROR(AVERAGEIFS(tblZnámkyZaPredmety[Výsledky],tblZnámkyZaPredmety[Predmet],Výpočty!$C7,tblZnámkyZaPredmety[Typ],Výpočty!AH$5)*Nastavenie!J10,\"\")","v":""},{"$f":"IFERROR(AVERAGEIFS(tblZnámkyZaPredmety[Výsledky],tblZnámkyZaPredmety[Predmet],Výpočty!$C7,tblZnámkyZaPredmety[Typ],Výpočty!AI$5)*Nastavenie!K10,\"\")","v":""},{"$f":"SUM(AC7:AI7)","v":0.1425},{"$f":"SUMIFS(Nastavenie!E10:K10,Výpočty!AC7:AI7,\">0\")","v":0.15},{"$f":"IFERROR(AJ7/AK7,\"\")","v":{"v":0.95,"d":"95%"}},4,"A"]
[null,null,{"$f":"IF(Nastavenie!C11=\"\",\"\",Nastavenie!C11)","v":"Matematika 1"},{"v":0.8,"d":"80%"},{"v":0.8,"d":"80%"},"","","","","","","","","","","","","","","","","","","","","","","",{"$f":"IFERROR(AVERAGEIFS(tblZnámkyZaPredmety[Výsledky],tblZnámkyZaPredmety[Predmet],Výpočty!$C8,tblZnámkyZaPredmety[Typ],Výpočty!AC$5)*Nastavenie!E11,\"\")","v":0.08000000000000002},{"$f":"IFERROR(AVERAGEIFS(tblZnámkyZaPredmety[Výsledky],tblZnámkyZaPredmety[Predmet],Výpočty!$C8,tblZnámkyZaPredmety[Typ],Výpočty!AD$5)*Nastavenie!F11,\"\")","v":""},{"$f":"IFERROR(AVERAGEIFS(tblZnámkyZaPredmety[Výsledky],tblZnámkyZaPredmety[Predmet],Výpočty!$C8,tblZnámkyZaPredmety[Typ],Výpočty!AE$5)*Nastavenie!G11,\"\")","v":""},{"$f":"IFERROR(AVERAGEIFS(tblZnámkyZaPredmety[Výsledky],tblZnámkyZaPredmety[Predmet],Výpočty!$C8,tblZnámkyZaPredmety[Typ],Výpočty!AF$5)*Nastavenie!H11,\"\")","v":""},{"$f":"IFERROR(AVERAGEIFS(tblZnámkyZaPredmety[Výsledky],tblZnámkyZaPredmety[Predmet],Výpočty!$C8,tblZnámkyZaPredmety[Typ],Výpočty!AG$5)*Nastavenie!I11,\"\")","v":""},{"$f":"IFERROR(AVERAGEIFS(tblZnámkyZaPredmety[Výsledky],tblZnámkyZaPredmety[Predmet],Výpočty!$C8,tblZnámkyZaPredmety[Typ],Výpočty!AH$5)*Nastavenie!J11,\"\")","v":""},{"$f":"IFERROR(AVERAGEIFS(tblZnámkyZaPredmety[Výsledky],tblZnámkyZaPredmety[Predmet],Výpočty!$C8,tblZnámkyZaPredmety[Typ],Výpočty!AI$5)*Nastavenie!K11,\"\")","v":""},0.08000000000000002,{"$f":"SUMIFS(Nastavenie!E11:K11,Výpočty!AC8:AI8,\">0\")","v":0.1},{"v":0.8000000000000002,"d":"80%"},2.67,"B-"]
[null,null,{"$f":"IF(Nastavenie!C12=\"\",\"\",Nastavenie!C12)","v":"Matematika 2"},{"v":0.85,"d":"85%"},{"v":0.95,"d":"95%"},"","","","","","","","","","","","","","","","","","","","","","","",{"$f":"IFERROR(AVERAGEIFS(tblZnámkyZaPredmety[Výsledky],tblZnámkyZaPredmety[Predmet],Výpočty!$C9,tblZnámkyZaPredmety[Typ],Výpočty!AC$5)*Nastavenie!E12,\"\")","v":0.1275},{"$f":"IFERROR(AVERAGEIFS(tblZnámkyZaPredmety[Výsledky],tblZnámkyZaPredmety[Predmet],Výpočty!$C9,tblZnámkyZaPredmety[Typ],Výpočty!AD$5)*Nastavenie!F12,\"\")","v":""},{"$f":"IFERROR(AVERAGEIFS(tblZnámkyZaPredmety[Výsledky],tblZnámkyZaPredmety[Predmet],Výpočty!$C9,tblZnámkyZaPredmety[Typ],Výpočty!AE$5)*Nastavenie!G12,\"\")","v":0.095},{"$f":"IFERROR(AVERAGEIFS(tblZnámkyZaPredmety[Výsledky],tblZnámkyZaPredmety[Predmet],Výpočty!$C9,tblZnámkyZaPredmety[Typ],Výpočty!AF$5)*Nastavenie!H12,\"\")","v":""},{"$f":"IFERROR(AVERAGEIFS(tblZnámkyZaPredmety[Výsledky],tblZnámkyZaPredmety[Predmet],Výpočty!$C9,tblZnámkyZaPredmety[Typ],Výpočty!AG$5)*Nastavenie!I12,\"\")","v":""},{"$f":"IFERROR(AVERAGEIFS(tblZnámkyZaPredmety[Výsledky],tblZnámkyZaPredmety[Predmet],Výpočty!$C9,tblZnámkyZaPredmety[Typ],Výpočty!AH$5)*Nastavenie!J12,\"\")","v":""},{"$f":"IFERROR(AVERAGEIFS(tblZnámkyZaPredmety[Výsledky],tblZnámkyZaPredmety[Predmet],Výpočty!$C9,tblZnámkyZaPredmety[Typ],Výpočty!AI$5)*Nastavenie!K12,\"\")","v":""},0.2225,{"$f":"SUMIFS(Nastavenie!E12:K12,Výpočty!AC9:AI9,\">0\")","v":0.25},{"v":0.89,"d":"89%"},3.33,"B+"]
[null,null,{"$f":"IF(Nastavenie!C13=\"\",\"\",Nastavenie!C13)","v":"Pokročilé programovanie v jazyku Java"},{"v":0.75,"d":"75%"},"","","","","","","","","","","","","","","","","","","","","","","","",{"$f":"IFERROR(AVERAGEIFS(tblZnámkyZaPredmety[Výsledky],tblZnámkyZaPredmety[Predmet],Výpočty!$C10,tblZnámkyZaPredmety[Typ],Výpočty!AC$5)*Nastavenie!E13,\"\")","v":""},{"$f":"IFERROR(AVERAGEIFS(tblZnámkyZaPredmety[Výsledky],tblZnámkyZaPredmety[Predmet],Výpočty!$C10,tblZnámkyZaPredmety[Typ],Výpočty!AD$5)*Nastavenie!F13,\"\")","v":""},{"$f":"IFERROR(AVERAGEIFS(tblZnámkyZaPredmety[Výsledky],tblZnámkyZaPredmety[Predmet],Výpočty!$C10,tblZnámkyZaPredmety[Typ],Výpočty!AE$5)*Nastavenie!G13,\"\")","v":""},{"$f":"IFERROR(AVERAGEIFS(tblZnámkyZaPredmety[Výsledky],tblZnámkyZaPredmety[Predmet],Výpočty!$C10,tblZnámkyZaPredmety[Typ],Výpočty!AF$5)*Nastavenie!H13,\"\")","v":""},{"$f":"IFERROR(AVERAGEIFS(tblZnámkyZaPredmety[Výsledky],tblZnámkyZaPredmety[Predmet],Výpočty!$C10,tblZnámkyZaPredmety[Typ],Výpočty!AG$5)*Nastavenie!I13,\"\")","v":0.15000000000000002},{"$f":"IFERROR(AVERAGEIFS(tblZnámkyZaPredmety[Výsledky],tblZnámkyZaPredmety[Predmet],Výpočty!$C10,tblZnámkyZaPredmety[Typ],Výpočty!AH$5)*Nastavenie!J13,\"\")","v":""},{"$f":"IFERROR(AVERAGEIFS(tblZnámkyZaPredmety[Výsledky],tblZnámkyZaPredmety[Predmet],Výpočty!$C10,tblZnámkyZaPredmety[Typ],Výpočty!AI$5)*Nastavenie!K13,\"\")","v":""},0.15000000000000002,{"$f":"SUMIFS(Nastavenie!E13:K13,Výpočty!AC10:AI10,\">0\")","v":0.2},{"v":0.7500000000000001,"d":"75%"},2,"C"]
[null,null,{"$f":"IF(Nastavenie!C14=\"\",\"\",Nastavenie!C14)","v":"Španielčina"},{"v":0.5,"d":"50%"},"","","","","","","","","","","","","","","","","","","","","","","","",{"$f":"IFERROR(AVERAGEIFS(tblZnámkyZaPredmety[Výsledky],tblZnámkyZaPredmety[Predmet],Výpočty!$C11,tblZnámkyZaPredmety[Typ],Výpočty!AC$5)*Nastavenie!E14,\"\")","v":0.05},{"$f":"IFERROR(AVERAGEIFS(tblZnámkyZaPredmety[Výsledky],tblZnámkyZaPredmety[Predmet],Výpočty!$C11,tblZnámkyZaPredmety[Typ],Výpočty!AD$5)*Nastavenie!F14,\"\")","v":""},{"$f":"IFERROR(AVERAGEIFS(tblZnámkyZaPredmety[Výsledky],tblZnámkyZaPredmety[Predmet],Výpočty!$C11,tblZnámkyZaPredmety[Typ],Výpočty!AE$5)*Nastavenie!G14,\"\")","v":""},{"$f":"IFERROR(AVERAGEIFS(tblZnámkyZaPredmety[Výsledky],tblZnámkyZaPredmety[Predmet],Výpočty!$C11,tblZnámkyZaPredmety[Typ],Výpočty!AF$5)*Nastavenie!H14,\"\")","v":""},{"$f":"IFERROR(AVERAGEIFS(tblZnámkyZaPredmety[Výsledky],tblZnámkyZaPredmety[Predmet],Výpočty!$C11,tblZnámkyZaPredmety[Typ],Výpočty!AG$5)*Nastavenie!I14,\"\")","v":""},{"$f":"IFERROR(AVERAGEIFS(tblZnámkyZaPredmety[Výsledky],tblZnámkyZaPredmety[Predmet],Výpočty!$C11,tblZnámkyZaPredmety[Typ],Výpočty!AH$5)*Nastavenie!J14,\"\")","v":""},{"$f":"IFERROR(AVERAGEIFS(tblZnámkyZaPredmety[Výsledky],tblZnámkyZaPredmety[Predmet],Výpočty!$C11,tblZnámkyZaPredmety[Typ],Výpočty!AI$5)*Nastavenie!K14,\"\")","v":""},0.05,{"$f":"SUMIFS(Nastavenie!E14:K14,Výpočty!AC11:AI11,\">0\")","v":0.1},{"v":0.5,"d":"50%"},0,"FX"]
[null,null,{"$f":"IF(Nastavenie!C15=\"\",\"\",Nastavenie!C15)","v":"Tvorivé písanie"},{"v":0.95,"d":"95%"},"","","","","","","","","","","","","","","","","","","","","","","","",{"$f":"IFERROR(AVERAGEIFS(tblZnámkyZaPredmety[Výsledky],tblZnámkyZaPredmety[Predmet],Výpočty!$C12,tblZnámkyZaPredmety[Typ],Výpočty!AC$5)*Nastavenie!E15,\"\")","v":""},{"$f":"IFERROR(AVERAGEIFS(tblZnámkyZaPredmety[Výsledky],tblZnámkyZaPredmety[Predmet],Výpočty!$C12,tblZnámkyZaPredmety[Typ],Výpočty!AD$5)*Nastavenie!F15,\"\")","v":0.1425},{"$f":"IFERROR(AVERAGEIFS(tblZnámkyZaPredmety[Výsledky],tblZnámkyZaPredmety[Predmet],Výpočty!$C12,tblZnámkyZaPredmety[Typ],Výpočty!AE$5)*Nastavenie!G15,\"\")","v":""},{"$f":"IFERROR(AVERAGEIFS(tblZnámkyZaPredmety[Výsledky],tblZnámkyZaPredmety[Predmet],Výpočty!$C12,tblZnámkyZaPredmety[Typ],Výpočty!AF$5)*Nastavenie!H15,\"\")","v":""},{"$f":"IFERROR(AVERAGEIFS(tblZnámkyZaPredmety[Výsledky],tblZnámkyZaPredmety[Predmet],Výpočty!$C12,tblZnámkyZaPredmety[Typ],Výpočty!AG$5)*Nastavenie!I15,\"\")","v":""},{"$f":"IFERROR(AVERAGEIFS(tblZnámkyZaPredmety[Výsledky],tblZnámkyZaPredmety[Predmet],Výpočty!$C12,tblZnámkyZaPredmety[Typ],Výpočty!AH$5)*Nastavenie!J15,\"\")","v":""},{"$f":"IFERROR(AVERAGEIFS(tblZnámkyZaPredmety[Výsledky],tblZnámkyZaPredmety[Predmet],Výpočty!$C12,tblZnámkyZaPredmety[Typ],Výpočty!AI$5)*Nastavenie!K15,\"\")","v":""},0.1425,{"$f":"SUMIFS(Nastavenie!E15:K15,Výpočty!AC12:AI12,\">0\")","v":0.15},{"v":0.95,"d":"95%"},4,"A"]
[null,null,{"$f":"IF(Nastavenie!C16=\"\",\"\",Nastavenie!C16)","v":""},"","","","","","","","","","","","","","","","","","","","","","","","","",{"$f":"IFERROR(AVERAGEIFS(tblZnámkyZaPredmety[Výsledky],tblZnámkyZaPredmety[Predmet],Výpočty!$C13,tblZnámkyZaPredmety[Typ],Výpočty!AC$5)*Nastavenie!E16,\"\")","v":""},{"$f":"IFERROR(AVERAGEIFS(tblZnámkyZaPredmety[Výsledky],tblZnámkyZaPredmety[Predmet],Výpočty!$C13,tblZnámkyZaPredmety[Typ],Výpočty!AD$5)*Nastavenie!F16,\"\")","v":""},{"$f":"IFERROR(AVERAGEIFS(tblZnámkyZaPredmety[Výsledky],tblZnámkyZaPredmety[Predmet],Výpočty!$C13,tblZnámkyZaPredmety[Typ],Výpočty!AE$5)*Nastavenie!G16,\"\")","v":""},{"$f":"IFERROR(AVERAGEIFS(tblZnámkyZaPredmety[Výsledky],tblZnámkyZaPredmety[Predmet],Výpočty!$C13,tblZnámkyZaPredmety[Typ],Výpočty!AF$5)*Nastavenie!H16,\"\")","v":""},{"$f":"IFERROR(AVERAGEIFS(tblZnámkyZaPredmety[Výsledky],tblZnámkyZaPredmety[Predmet],Výpočty!$C13,tblZnámkyZaPredmety[Typ],Výpočty!AG$5)*Nastavenie!I16,\"\")","v":""},{"$f":"IFERROR(AVERAGEIFS(tblZnámkyZaPredmety[Výsledky],tblZnámkyZaPredmety[Predmet],Výpočty!$C13,tblZnámkyZaPredmety[Typ],Výpočty!AH$5)*Nastavenie!J16,\"\")","v":""},{"$f":"IFERROR(AVERAGEIFS(tblZnámkyZaPredmety[Výsledky],tblZnámkyZaPredmety[Predmet],Výpočty!$C13,tblZnámkyZaPredmety[Typ],Výpočty!AI$5)*Nastavenie!K16,\"\")","v":""},{"$f":"SUM(AC13:AI13)","v":0},{"$f":"SUMIFS(Nastavenie!E16:K16,Výpočty!AC13:AI13,\">0\")","v":0},{"$f":"IFERROR(AJ13/AK13,\"\")","v":""},"",""]
[null,null,{"$f":"IF(Nastavenie!C17=\"\",\"\",Nastavenie!C17)","v":""},"","","","","","","","","","","","","","","","","","","","","","","","","",{"$f":"IFERROR(AVERAGEIFS(tblZnámkyZaPredmety[Výsledky],tblZnámkyZaPredmety[Predmet],Výpočty!$C14,tblZnámkyZaPredmety[Typ],Výpočty!AC$5)*Nastavenie!E17,\"\")","v":""},{"$f":"IFERROR(AVERAGEIFS(tblZnámkyZaPredmety[Výsledky],tblZnámkyZaPredmety[Predmet],Výpočty!$C14,tblZnámkyZaPredmety[Typ],Výpočty!AD$5)*Nastavenie!F17,\"\")","v":""},{"$f":"IFERROR(AVERAGEIFS(tblZnámkyZaPredmety[Výsledky],tblZnámkyZaPredmety[Predmet],Výpočty!$C14,tblZnámkyZaPredmety[Typ],Výpočty!AE$5)*Nastavenie!G17,\"\")","v":""},{"$f":"IFERROR(AVERAGEIFS(tblZnámkyZaPredmety[Výsledky],tblZnámkyZaPredmety[Predmet],Výpočty!$C14,tblZnámkyZaPredmety[Typ],Výpočty!AF$5)*Nastavenie!H17,\"\")","v":""},{"$f":"IFERROR(AVERAGEIFS(tblZnámkyZaPredmety[Výsledky],tblZnámkyZaPredmety[Predmet],Výpočty!$C14,tblZnámkyZaPredmety[Typ],Výpočty!AG$5)*Nastavenie!I17,\"\")","v":""},{"$f":"IFERROR(AVERAGEIFS(tblZnámkyZaPredmety[Výsledky],tblZnámkyZaPredmety[Predmet],Výpočty!$C14,tblZnámkyZaPredmety[Typ],Výpočty!AH$5)*Nastavenie!J17,\"\")","v":""},{"$f":"IFERROR(AVERAGEIFS(tblZnámkyZaPredmety[Výsledky],tblZnámkyZaPredmety[Predmet],Výpočty!$C14,tblZnámkyZaPredmety[Typ],Výpočty!AI$5)*Nastavenie!K17,\"\")","v":""},0,{"$f":"SUMIFS(Nastavenie!E17:K17,Výpočty!AC14:AI14,\">0\")","v":0},"","",""]
[null,null,{"$f":"IF(Nastavenie!C18=\"\",\"\",Nastavenie!C18)","v":""},"","","","","","","","","","","","","","","","","","","","","","","","","",{"$f":"IFERROR(AVERAGEIFS(tblZnámkyZaPredmety[Výsledky],tblZnámkyZaPredmety[Predmet],Výpočty!$C15,tblZnámkyZaPredmety[Typ],Výpočty!AC$5)*Nastavenie!E18,\"\")","v":""},{"$f":"IFERROR(AVERAGEIFS(tblZnámkyZaPredmety[Výsledky],tblZnámkyZaPredmety[Predmet],Výpočty!$C15,tblZnámkyZaPredmety[Typ],Výpočty!AD$5)*Nastavenie!F18,\"\")","v":""},{"$f":"IFERROR(AVERAGEIFS(tblZnámkyZaPredmety[Výsledky],tblZnámkyZaPredmety[Predmet],Výpočty!$C15,tblZnámkyZaPredmety[Typ],Výpočty!AE$5)*Nastavenie!G18,\"\")","v":""},{"$f":"IFERROR(AVERAGEIFS(tblZnámkyZaPredmety[Výsledky],tblZnámkyZaPredmety[Predmet],Výpočty!$C15,tblZnámkyZaPredmety[Typ],Výpočty!AF$5)*Nastavenie!H18,\"\")","v":""},{"$f":"IFERROR(AVERAGEIFS(tblZnámkyZaPredmety[Výsledky],tblZnámkyZaPredmety[Predmet],Výpočty!$C15,tblZnámkyZaPredmety[Typ],Výpočty!AG$5)*Nastavenie!I18,\"\")","v":""},{"$f":"IFERROR(AVERAGEIFS(tblZnámkyZaPredmety[Výsledky],tblZnámkyZaPredmety[Predmet],Výpočty!$C15,tblZnámkyZaPredmety[Typ],Výpočty!AH$5)*Nastavenie!J18,\"\")","v":""},{"$f":"IFERROR(AVERAGEIFS(tblZnámkyZaPredmety[Výsledky],tblZnámkyZaPredmety[Predmet],Výpočty!$C15,tblZnámkyZaPredmety[Typ],Výpočty!AI$5)*Nastavenie!K18,\"\")","v":""},0,{"$f":"SUMIFS(Nastavenie!E18:K18,Výpočty!AC15:AI15,\">0\")","v":0},"","",""]
[null,null,{"$f":"IF(Nastavenie!C19=\"\",\"\",Nastavenie!C19)","v":""},"","","","","","","","","","","","","","","","","","","","","","","","","",{"$f":"IFERROR(AVERAGEIFS(tblZnámkyZaPredmety[Výsledky],tblZnámkyZaPredmety[Predmet],Výpočty!$C16,tblZnámkyZaPredmety[Typ],Výpočty!AC$5)*Nastavenie!E19,\"\")","v":""},{"$f":"IFERROR(AVERAGEIFS(tblZnámkyZaPredmety[Výsledky],tblZnámkyZaPredmety[Predmet],Výpočty!$C16,tblZnámkyZaPredmety[Typ],Výpočty!AD$5)*Nastavenie!F19,\"\")","v":""},{"$f":"IFERROR(AVERAGEIFS(tblZnámkyZaPredmety[Výsledky],tblZnámkyZaPredmety[Predmet],Výpočty!$C16,tblZnámkyZaPredmety[Typ],Výpočty!AE$5)*Nastavenie!G19,\"\")","v":""},{"$f":"IFERROR(AVERAGEIFS(tblZnámkyZaPredmety[Výsledky],tblZnámkyZaPredmety[Predmet],Výpočty!$C16,tblZnámkyZaPredmety[Typ],Výpočty!AF$5)*Nastavenie!H19,\"\")","v":""},{"$f":"IFERROR(AVERAGEIFS(tblZnámkyZaPredmety[Výsledky],tblZnámkyZaPredmety[Predmet],Výpočty!$C16,tblZnámkyZaPredmety[Typ],Výpočty!AG$5)*Nastavenie!I19,\"\")","v":""},{"$f":"IFERROR(AVERAGEIFS(tblZnámkyZaPredmety[Výsledky],tblZnámkyZaPredmety[Predmet],Výpočty!$C16,tblZnámkyZaPredmety[Typ],Výpočty!AH$5)*Nastavenie!J19,\"\")","v":""},{"$f":"IFERROR(AVERAGEIFS(tblZnámkyZaPredmety[Výsledky],tblZnámkyZaPredmety[Predmet],Výpočty!$C16,tblZnámkyZaPredmety[Typ],Výpočty!AI$5)*Nastavenie!K19,\"\")","v":""},0,{"$f":"SUMIFS(Nastavenie!E19:K19,Výpočty!AC16:AI16,\">0\")","v":0},"","",""]
[null,null,{"$f":"IF(Nastavenie!C20=\"\",\"\",Nastavenie!C20)","v":""},"","","","","","","","","","","","","","","","","","","","","","","","","",{"$f":"IFERROR(AVERAGEIFS(tblZnámkyZaPredmety[Výsledky],tblZnámkyZaPredmety[Predmet],Výpočty!$C17,tblZnámkyZaPredmety[Typ],Výpočty!AC$5)*Nastavenie!E20,\"\")","v":""},{"$f":"IFERROR(AVERAGEIFS(tblZnámkyZaPredmety[Výsledky],tblZnámkyZaPredmety[Predmet],Výpočty!$C17,tblZnámkyZaPredmety[Typ],Výpočty!AD$5)*Nastavenie!F20,\"\")","v":""},{"$f":"IFERROR(AVERAGEIFS(tblZnámkyZaPredmety[Výsledky],tblZnámkyZaPredmety[Predmet],Výpočty!$C17,tblZnámkyZaPredmety[Typ],Výpočty!AE$5)*Nastavenie!G20,\"\")","v":""},{"$f":"IFERROR(AVERAGEIFS(tblZnámkyZaPredmety[Výsledky],tblZnámkyZaPredmety[Predmet],Výpočty!$C17,tblZnámkyZaPredmety[Typ],Výpočty!AF$5)*Nastavenie!H20,\"\")","v":""},{"$f":"IFERROR(AVERAGEIFS(tblZnámkyZaPredmety[Výsledky],tblZnámkyZaPredmety[Predmet],Výpočty!$C17,tblZnámkyZaPredmety[Typ],Výpočty!AG$5)*Nastavenie!I20,\"\")","v":""},{"$f":"IFERROR(AVERAGEIFS(tblZnámkyZaPredmety[Výsledky],tblZnámkyZaPredmety[Predmet],Výpočty!$C17,tblZnámkyZaPredmety[Typ],Výpočty!AH$5)*Nastavenie!J20,\"\")","v":""},{"$f":"IFERROR(AVERAGEIFS(tblZnámkyZaPredmety[Výsledky],tblZnámkyZaPredmety[Predmet],Výpočty!$C17,tblZnámkyZaPredmety[Typ],Výpočty!AI$5)*Nastavenie!K20,\"\")","v":""},0,{"$f":"SUMIFS(Nastavenie!E20:K20,Výpočty!AC17:AI17,\">0\")","v":0},"","",""]
[null,null,{"$f":"IF(Nastavenie!C21=\"\",\"\",Nastavenie!C21)","v":""},"","","","","","","","","","","","","","","","","","","","","","","","","",{"$f":"IFERROR(AVERAGEIFS(tblZnámkyZaPredmety[Výsledky],tblZnámkyZaPredmety[Predmet],Výpočty!$C18,tblZnámkyZaPredmety[Typ],Výpočty!AC$5)*Nastavenie!E21,\"\")","v":""},{"$f":"IFERROR(AVERAGEIFS(tblZnámkyZaPredmety[Výsledky],tblZnámkyZaPredmety[Predmet],Výpočty!$C18,tblZnámkyZaPredmety[Typ],Výpočty!AD$5)*Nastavenie!F21,\"\")","v":""},{"$f":"IFERROR(AVERAGEIFS(tblZnámkyZaPredmety[Výsledky],tblZnámkyZaPredmety[Predmet],Výpočty!$C18,tblZnámkyZaPredmety[Typ],Výpočty!AE$5)*Nastavenie!G21,\"\")","v":""},{"$f":"IFERROR(AVERAGEIFS(tblZnámkyZaPredmety[Výsledky],tblZnámkyZaPredmety[Predmet],Výpočty!$C18,tblZnámkyZaPredmety[Typ],Výpočty!AF$5)*Nastavenie!H21,\"\")","v":""},{"$f":"IFERROR(AVERAGEIFS(tblZnámkyZaPredmety[Výsledky],tblZnámkyZaPredmety[Predmet],Výpočty!$C18,tblZnámkyZaPredmety[Typ],Výpočty!AG$5)*Nastavenie!I21,\"\")","v":""},{"$f":"IFERROR(AVERAGEIFS(tblZnámkyZaPredmety[Výsledky],tblZnámkyZaPredmety[Predmet],Výpočty!$C18,tblZnámkyZaPredmety[Typ],Výpočty!AH$5)*Nastavenie!J21,\"\")","v":""},{"$f":"IFERROR(AVERAGEIFS(tblZnámkyZaPredmety[Výsledky],tblZnámkyZaPredmety[Predmet],Výpočty!$C18,tblZnámkyZaPredmety[Typ],Výpočty!AI$5)*Nastavenie!K21,\"\")","v":""},0,{"$f":"SUMIFS(Nastavenie!E21:K21,Výpočty!AC18:AI18,\">0\")","v":0},"","",""]
[null,null,{"$f":"IF(Nastavenie!C22=\"\",\"\",Nastavenie!C22)","v":""},"","","","","","","","","","","","","","","","","","","","","","","","","",{"$f":"IFERROR(AVERAGEIFS(tblZnámkyZaPredmety[Výsledky],tblZnámkyZaPredmety[Predmet],Výpočty!$C19,tblZnámkyZaPredmety[Typ],Výpočty!AC$5)*Nastavenie!E22,\"\")","v":""},{"$f":"IFERROR(AVERAGEIFS(tblZnámkyZaPredmety[Výsledky],tblZnámkyZaPredmety[Predmet],Výpočty!$C19,tblZnámkyZaPredmety[Typ],Výpočty!AD$5)*Nastavenie!F22,\"\")","v":""},{"$f":"IFERROR(AVERAGEIFS(tblZnámkyZaPredmety[Výsledky],tblZnámkyZaPredmety[Predmet],Výpočty!$C19,tblZnámkyZaPredmety[Typ],Výpočty!AE$5)*Nastavenie!G22,\"\")","v":""},{"$f":"IFERROR(AVERAGEIFS(tblZnámkyZaPredmety[Výsledky],tblZnámkyZaPredmety[Predmet],Výpočty!$C19,tblZnámkyZaPredmety[Typ],Výpočty!AF$5)*Nastavenie!H22,\"\")","v":""},{"$f":"IFERROR(AVERAGEIFS(tblZnámkyZaPredmety[Výsledky],tblZnámkyZaPredmety[Predmet],Výpočty!$C19,tblZnámkyZaPredmety[Typ],Výpočty!AG$5)*Nastavenie!I22,\"\")","v":""},{"$f":"IFERROR(AVERAGEIFS(tblZnámkyZaPredmety[Výsledky],tblZnámkyZaPredmety[Predmet],Výpočty!$C19,tblZnámkyZaPredmety[Typ],Výpočty!AH$5)*Nastavenie!J22,\"\")","v":""},{"$f":"IFERROR(AVERAGEIFS(tblZnámkyZaPredmety[Výsledky],tblZnámkyZaPredmety[Predmet],Výpočty!$C19,tblZnámkyZaPredmety[Typ],Výpočty!AI$5)*Nastavenie!K22,\"\")","v":""},0,{"$f":"SUMIFS(Nastavenie!E22:K22,Výpočty!AC19:AI19,\">0\")","v":0},"","",""]
[null,null,{"$f":"IF(Nastavenie!C23=\"\",\"\",Nastavenie!C23)","v":""},"","","","","","","","","","","","","","","","","","","","","","","","","",{"$f":"IFERROR(AVERAGEIFS(tblZnámkyZaPredmety[Výsledky],tblZnámkyZaPredmety[Predmet],Výpočty!$C20,tblZnámkyZaPredmety[Typ],Výpočty!AC$5)*Nastavenie!E23,\"\")","v":""},{"$f":"IFERROR(AVERAGEIFS(tblZnámkyZaPredmety[Výsledky],tblZnámkyZaPredmety[Predmet],Výpočty!$C20,tblZnámkyZaPredmety[Typ],Výpočty!AD$5)*Nastavenie!F23,\"\")","v":""},{"$f":"IFERROR(AVERAGEIFS(tblZnámkyZaPredmety[Výsledky],tblZnámkyZaPredmety[Predmet],Výpočty!$C20,tblZnámkyZaPredmety[Typ],Výpočty!AE$5)*Nastavenie!G23,\"\")","v":""},{"$f":"IFERROR(AVERAGEIFS(tblZnámkyZaPredmety[Výsledky],tblZnámkyZaPredmety[Predmet],Výpočty!$C20,tblZnámkyZaPredmety[Typ],Výpočty!AF$5)*Nastavenie!H23,\"\")","v":""},{"$f":"IFERROR(AVERAGEIFS(tblZnámkyZaPredmety[Výsledky],tblZnámkyZaPredmety[Predmet],Výpočty!$C20,tblZnámkyZaPredmety[Typ],Výpočty!AG$5)*Nastavenie!I23,\"\")","v":""},{"$f":"IFERROR(AVERAGEIFS(tblZnámkyZaPredmety[Výsledky],tblZnámkyZaPredmety[Predmet],Výpočty!$C20,tblZnámkyZaPredmety[Typ],Výpočty!AH$5)*Nastavenie!J23,\"\")","v":""},{"$f":"IFERROR(AVERAGEIFS(tblZnámkyZaPredmety[Výsledky],tblZnámkyZaPredmety[Predmet],Výpočty!$C20,tblZnámkyZaPredmety[Typ],Výpočty!AI$5)*Nastavenie!K23,\"\")","v":""},0,{"$f":"SUMIFS(Nastavenie!E23:K23,Výpočty!AC20:AI20,\">0\")","v":0},"","",""]
[null,null,{"$f":"IF(Nastavenie!C24=\"\",\"\",Nastavenie!C24)","v":""},"","","","","","","","","","","","","","","","","","","","","","","","","",{"$f":"IFERROR(AVERAGEIFS(tblZnámkyZaPredmety[Výsledky],tblZnámkyZaPredmety[Predmet],Výpočty!$C21,tblZnámkyZaPredmety[Typ],Výpočty!AC$5)*Nastavenie!E24,\"\")","v":""},{"$f":"IFERROR(AVERAGEIFS(tblZnámkyZaPredmety[Výsledky],tblZnámkyZaPredmety[Predmet],Výpočty!$C21,tblZnámkyZaPredmety[Typ],Výpočty!AD$5)*Nastavenie!F24,\"\")","v":""},{"$f":"IFERROR(AVERAGEIFS(tblZnámkyZaPredmety[Výsledky],tblZnámkyZaPredmety[Predmet],Výpočty!$C21,tblZnámkyZaPredmety[Typ],Výpočty!AE$5)*Nastavenie!G24,\"\")","v":""},{"$f":"IFERROR(AVERAGEIFS(tblZnámkyZaPredmety[Výsledky],tblZnámkyZaPredmety[Predmet],Výpočty!$C21,tblZnámkyZaPredmety[Typ],Výpočty!AF$5)*Nastavenie!H24,\"\")","v":""},{"$f":"IFERROR(AVERAGEIFS(tblZnámkyZaPredmety[Výsledky],tblZnámkyZaPredmety[Predmet],Výpočty!$C21,tblZnámkyZaPredmety[Typ],Výpočty!AG$5)*Nastavenie!I24,\"\")","v":""},{"$f":"IFERROR(AVERAGEIFS(tblZnámkyZaPredmety[Výsledky],tblZnámkyZaPredmety[Predmet],Výpočty!$C21,tblZnámkyZaPredmety[Typ],Výpočty!AH$5)*Nastavenie!J24,\"\")","v":""},{"$f":"IFERROR(AVERAGEIFS(tblZnámkyZaPredmety[Výsledky],tblZnámkyZaPredmety[Predmet],Výpočty!$C21,tblZnámkyZaPredmety[Typ],Výpočty!AI$5)*Nastavenie!K24,\"\")","v":""},0,{"$f":"SUMIFS(Nastavenie!E24:K24,Výpočty!AC21:AI21,\">0\")","v":0},"","",""]
[null,null,{"$f":"IF(Nastavenie!C25=\"\",\"\",Nastavenie!C25)","v":""},"","","","","","","","","","","","","","","","","","","","","","","","","",{"$f":"IFERROR(AVERAGEIFS(tblZnámkyZaPredmety[Výsledky],tblZnámkyZaPredmety[Predmet],Výpočty!$C22,tblZnámkyZaPredmety[Typ],Výpočty!AC$5)*Nastavenie!E25,\"\")","v":""},{"$f":"IFERROR(AVERAGEIFS(tblZnámkyZaPredmety[Výsledky],tblZnámkyZaPredmety[Predmet],Výpočty!$C22,tblZnámkyZaPredmety[Typ],Výpočty!AD$5)*Nastavenie!F25,\"\")","v":""},{"$f":"IFERROR(AVERAGEIFS(tblZnámkyZaPredmety[Výsledky],tblZnámkyZaPredmety[Predmet],Výpočty!$C22,tblZnámkyZaPredmety[Typ],Výpočty!AE$5)*Nastavenie!G25,\"\")","v":""},{"$f":"IFERROR(AVERAGEIFS(tblZnámkyZaPredmety[Výsledky],tblZnámkyZaPredmety[Predmet],Výpočty!$C22,tblZnámkyZaPredmety[Typ],Výpočty!AF$5)*Nastavenie!H25,\"\")","v":""},{"$f":"IFERROR(AVERAGEIFS(tblZnámkyZaPredmety[Výsledky],tblZnámkyZaPredmety[Predmet],Výpočty!$C22,tblZnámkyZaPredmety[Typ],Výpočty!AG$5)*Nastavenie!I25,\"\")","v":""},{"$f":"IFERROR(AVERAGEIFS(tblZnámkyZaPredmety[Výsledky],tblZnámkyZaPredmety[Predmet],Výpočty!$C22,tblZnámkyZaPredmety[Typ],Výpočty!AH$5)*Nastavenie!J25,\"\")","v":""},{"$f":"IFERROR(AVERAGEIFS(tblZnámkyZaPredmety[Výsledky],tblZnámkyZaPredmety[Predmet],Výpočty!$C22,tblZnámkyZaPredmety[Typ],Výpočty!AI$5)*Nastavenie!K25,\"\")","v":""},0,{"$f":"SUMIFS(Nastavenie!E25:K25,Výpočty!AC22:AI22,\">0\")","v":0},"","",""]
[null,null,{"$f":"IF(Nastavenie!C26=\"\",\"\",Nastavenie!C26)","v":""},"","","","","","","","","","","","","","","","","","","","","","","","","",{"$f":"IFERROR(AVERAGEIFS(tblZnámkyZaPredmety[Výsledky],tblZnámkyZaPredmety[Predmet],Výpočty!$C23,tblZnámkyZaPredmety[Typ],Výpočty!AC$5)*Nastavenie!E26,\"\")","v":""},{"$f":"IFERROR(AVERAGEIFS(tblZnámkyZaPredmety[Výsledky],tblZnámkyZaPredmety[Predmet],Výpočty!$C23,tblZnámkyZaPredmety[Typ],Výpočty!AD$5)*Nastavenie!F26,\"\")","v":""},{"$f":"IFERROR(AVERAGEIFS(tblZnámkyZaPredmety[Výsledky],tblZnámkyZaPredmety[Predmet],Výpočty!$C23,tblZnámkyZaPredmety[Typ],Výpočty!AE$5)*Nastavenie!G26,\"\")","v":""},{"$f":"IFERROR(AVERAGEIFS(tblZnámkyZaPredmety[Výsledky],tblZnámkyZaPredmety[Predmet],Výpočty!$C23,tblZnámkyZaPredmety[Typ],Výpočty!AF$5)*Nastavenie!H26,\"\")","v":""},{"$f":"IFERROR(AVERAGEIFS(tblZnámkyZaPredmety[Výsledky],tblZnámkyZaPredmety[Predmet],Výpočty!$C23,tblZnámkyZaPredmety[Typ],Výpočty!AG$5)*Nastavenie!I26,\"\")","v":""},{"$f":"IFERROR(AVERAGEIFS(tblZnámkyZaPredmety[Výsledky],tblZnámkyZaPredmety[Predmet],Výpočty!$C23,tblZnámkyZaPredmety[Typ],Výpočty!AH$5)*Nastavenie!J26,\"\")","v":""},{"$f":"IFERROR(AVERAGEIFS(tblZnámkyZaPredmety[Výsledky],tblZnámkyZaPredmety[Predmet],Výpočty!$C23,tblZnámkyZaPredmety[Typ],Výpočty!AI$5)*Nastavenie!K26,\"\")","v":""},0,{"$f":"SUMIFS(Nastavenie!E26:K26,Výpočty!AC23:AI23,\">0\")","v":0},"","",""]
[null,null,{"$f":"IF(Nastavenie!C27=\"\",\"\",Nastavenie!C27)","v":""},"","","","","","","","","","","","","","","","","","","","","","","","","",{"$f":"IFERROR(AVERAGEIFS(tblZnámkyZaPredmety[Výsledky],tblZnámkyZaPredmety[Predmet],Výpočty!$C24,tblZnámkyZaPredmety[Typ],Výpočty!AC$5)*Nastavenie!E27,\"\")","v":""},{"$f":"IFERROR(AVERAGEIFS(tblZnámkyZaPredmety[Výsledky],tblZnámkyZaPredmety[Predmet],Výpočty!$C24,tblZnámkyZaPredmety[Typ],Výpočty!AD$5)*Nastavenie!F27,\"\")","v":""},{"$f":"IFERROR(AVERAGEIFS(tblZnámkyZaPredmety[Výsledky],tblZnámkyZaPredmety[Predmet],Výpočty!$C24,tblZnámkyZaPredmety[Typ],Výpočty!AE$5)*Nastavenie!G27,\"\")","v":""},{"$f":"IFERROR(AVERAGEIFS(tblZnámkyZaPredmety[Výsledky],tblZnámkyZaPredmety[Predmet],Výpočty!$C24,tblZnámkyZaPredmety[Typ],Výpočty!AF$5)*Nastavenie!H27,\"\")","v":""},{"$f":"IFERROR(AVERAGEIFS(tblZnámkyZaPredmety[Výsledky],tblZnámkyZaPredmety[Predmet],Výpočty!$C24,tblZnámkyZaPredmety[Typ],Výpočty!AG$5)*Nastavenie!I27,\"\")","v":""},{"$f":"IFERROR(AVERAGEIFS(tblZnámkyZaPredmety[Výsledky],tblZnámkyZaPredmety[Predmet],Výpočty!$C24,tblZnámkyZaPredmety[Typ],Výpočty!AH$5)*Nastavenie!J27,\"\")","v":""},{"$f":"IFERROR(AVERAGEIFS(tblZnámkyZaPredmety[Výsledky],tblZnámkyZaPredmety[Predmet],Výpočty!$C24,tblZnámkyZaPredmety[Typ],Výpočty!AI$5)*Nastavenie!K27,\"\")","v":""},0,{"$f":"SUMIFS(Nastavenie!E27:K27,Výpočty!AC24:AI24,\">0\")","v":0},"","",""]
[null,null,{"$f":"IF(Nastavenie!C28=\"\",\"\",Nastavenie!C28)","v":""},"","","","","","","","","","","","","","","","","","","","","","","","","",{"$f":"IFERROR(AVERAGEIFS(tblZnámkyZaPredmety[Výsledky],tblZnámkyZaPredmety[Predmet],Výpočty!$C25,tblZnámkyZaPredmety[Typ],Výpočty!AC$5)*Nastavenie!E28,\"\")","v":""},{"$f":"IFERROR(AVERAGEIFS(tblZnámkyZaPredmety[Výsledky],tblZnámkyZaPredmety[Predmet],Výpočty!$C25,tblZnámkyZaPredmety[Typ],Výpočty!AD$5)*Nastavenie!F28,\"\")","v":""},{"$f":"IFERROR(AVERAGEIFS(tblZnámkyZaPredmety[Výsledky],tblZnámkyZaPredmety[Predmet],Výpočty!$C25,tblZnámkyZaPredmety[Typ],Výpočty!AE$5)*Nastavenie!G28,\"\")","v":""},{"$f":"IFERROR(AVERAGEIFS(tblZnámkyZaPredmety[Výsledky],tblZnámkyZaPredmety[Predmet],Výpočty!$C25,tblZnámkyZaPredmety[Typ],Výpočty!AF$5)*Nastavenie!H28,\"\")","v":""},{"$f":"IFERROR(AVERAGEIFS(tblZnámkyZaPredmety[Výsledky],tblZnámkyZaPredmety[Predmet],Výpočty!$C25,tblZnámkyZaPredmety[Typ],Výpočty!AG$5)*Nastavenie!I28,\"\")","v":""},{"$f":"IFERROR(AVERAGEIFS(tblZnámkyZaPredmety[Výsledky],tblZnámkyZaPredmety[Predmet],Výpočty!$C25,tblZnámkyZaPredmety[Typ],Výpočty!AH$5)*Nastavenie!J28,\"\")","v":""},{"$f":"IFERROR(AVERAGEIFS(tblZnámkyZaPredmety[Výsledky],tblZnámkyZaPredmety[Predmet],Výpočty!$C25,tblZnámkyZaPredmety[Typ],Výpočty!AI$5)*Nastavenie!K28,\"\")","v":""},0,{"$f":"SUMIFS(Nastavenie!E28:K28,Výpočty!AC25:AI25,\">0\")","v":0},"","",""]
[null,null,{"$f":"IF(Nastavenie!C29=\"\",\"\",Nastavenie!C29)","v":""},"","","","","","","","","","","","","","","","","","","","","","","","","",{"$f":"IFERROR(AVERAGEIFS(tblZnámkyZaPredmety[Výsledky],tblZnámkyZaPredmety[Predmet],Výpočty!$C26,tblZnámkyZaPredmety[Typ],Výpočty!AC$5)*Nastavenie!E29,\"\")","v":""},{"$f":"IFERROR(AVERAGEIFS(tblZnámkyZaPredmety[Výsledky],tblZnámkyZaPredmety[Predmet],Výpočty!$C26,tblZnámkyZaPredmety[Typ],Výpočty!AD$5)*Nastavenie!F29,\"\")","v":""},{"$f":"IFERROR(AVERAGEIFS(tblZnámkyZaPredmety[Výsledky],tblZnámkyZaPredmety[Predmet],Výpočty!$C26,tblZnámkyZaPredmety[Typ],Výpočty!AE$5)*Nastavenie!G29,\"\")","v":""},{"$f":"IFERROR(AVERAGEIFS(tblZnámkyZaPredmety[Výsledky],tblZnámkyZaPredmety[Predmet],Výpočty!$C26,tblZnámkyZaPredmety[Typ],Výpočty!AF$5)*Nastavenie!H29,\"\")","v":""},{"$f":"IFERROR(AVERAGEIFS(tblZnámkyZaPredmety[Výsledky],tblZnámkyZaPredmety[Predmet],Výpočty!$C26,tblZnámkyZaPredmety[Typ],Výpočty!AG$5)*Nastavenie!I29,\"\")","v":""},{"$f":"IFERROR(AVERAGEIFS(tblZnámkyZaPredmety[Výsledky],tblZnámkyZaPredmety[Predmet],Výpočty!$C26,tblZnámkyZaPredmety[Typ],Výpočty!AH$5)*Nastavenie!J29,\"\")","v":""},{"$f":"IFERROR(AVERAGEIFS(tblZnámkyZaPredmety[Výsledky],tblZnámkyZaPredmety[Predmet],Výpočty!$C26,tblZnámkyZaPredmety[Typ],Výpočty!AI$5)*Nastavenie!K29,\"\")","v":""},0,{"$f":"SUMIFS(Nastavenie!E29:K29,Výpočty!AC26:AI26,\">0\")","v":0},"","",""]
[null,null,{"$f":"IF(Nastavenie!C30=\"\",\"\",Nastavenie!C30)","v":""},"","","","","","","","","","","","","","","","","","","","","","","","","",{"$f":"IFERROR(AVERAGEIFS(tblZnámkyZaPredmety[Výsledky],tblZnámkyZaPredmety[Predmet],Výpočty!$C27,tblZnámkyZaPredmety[Typ],Výpočty!AC$5)*Nastavenie!E30,\"\")","v":""},{"$f":"IFERROR(AVERAGEIFS(tblZnámkyZaPredmety[Výsledky],tblZnámkyZaPredmety[Predmet],Výpočty!$C27,tblZnámkyZaPredmety[Typ],Výpočty!AD$5)*Nastavenie!F30,\"\")","v":""},{"$f":"IFERROR(AVERAGEIFS(tblZnámkyZaPredmety[Výsledky],tblZnámkyZaPredmety[Predmet],Výpočty!$C27,tblZnámkyZaPredmety[Typ],Výpočty!AE$5)*Nastavenie!G30,\"\")","v":""},{"$f":"IFERROR(AVERAGEIFS(tblZnámkyZaPredmety[Výsledky],tblZnámkyZaPredmety[Predmet],Výpočty!$C27,tblZnámkyZaPredmety[Typ],Výpočty!AF$5)*Nastavenie!H30,\"\")","v":""},{"$f":"IFERROR(AVERAGEIFS(tblZnámkyZaPredmety[Výsledky],tblZnámkyZaPredmety[Predmet],Výpočty!$C27,tblZnámkyZaPredmety[Typ],Výpočty!AG$5)*Nastavenie!I30,\"\")","v":""},{"$f":"IFERROR(AVERAGEIFS(tblZnámkyZaPredmety[Výsledky],tblZnámkyZaPredmety[Predmet],Výpočty!$C27,tblZnámkyZaPredmety[Typ],Výpočty!AH$5)*Nastavenie!J30,\"\")","v":""},{"$f":"IFERROR(AVERAGEIFS(tblZnámkyZaPredmety[Výsledky],tblZnámkyZaPredmety[Predmet],Výpočty!$C27,tblZnámkyZaPredmety[Typ],Výpočty!AI$5)*Nastavenie!K30,\"\")","v":""},0,{"$f":"SUMIFS(Nastavenie!E30:K30,Výpočty!AC27:AI27,\">0\")","v":0},"","",""]
[null,null,{"$f":"IF(Nastavenie!C31=\"\",\"\",Nastavenie!C31)","v":""},"","","","","","","","","","","","","","","","","","","","","","","","","",{"$f":"IFERROR(AVERAGEIFS(tblZnámkyZaPredmety[Výsledky],tblZnámkyZaPredmety[Predmet],Výpočty!$C28,tblZnámkyZaPredmety[Typ],Výpočty!AC$5)*Nastavenie!E31,\"\")","v":""},{"$f":"IFERROR(AVERAGEIFS(tblZnámkyZaPredmety[Výsledky],tblZnámkyZaPredmety[Predmet],Výpočty!$C28,tblZnámkyZaPredmety[Typ],Výpočty!AD$5)*Nastavenie!F31,\"\")","v":""},{"$f":"IFERROR(AVERAGEIFS(tblZnámkyZaPredmety[Výsledky],tblZnámkyZaPredmety[Predmet],Výpočty!$C28,tblZnámkyZaPredmety[Typ],Výpočty!AE$5)*Nastavenie!G31,\"\")","v":""},{"$f":"IFERROR(AVERAGEIFS(tblZnámkyZaPredmety[Výsledky],tblZnámkyZaPredmety[Predmet],Výpočty!$C28,tblZnámkyZaPredmety[Typ],Výpočty!AF$5)*Nastavenie!H31,\"\")","v":""},{"$f":"IFERROR(AVERAGEIFS(tblZnámkyZaPredmety[Výsledky],tblZnámkyZaPredmety[Predmet],Výpočty!$C28,tblZnámkyZaPredmety[Typ],Výpočty!AG$5)*Nastavenie!I31,\"\")","v":""},{"$f":"IFERROR(AVERAGEIFS(tblZnámkyZaPredmety[Výsledky],tblZnámkyZaPredmety[Predmet],Výpočty!$C28,tblZnámkyZaPredmety[Typ],Výpočty!AH$5)*Nastavenie!J31,\"\")","v":""},{"$f":"IFERROR(AVERAGEIFS(tblZnámkyZaPredmety[Výsledky],tblZnámkyZaPredmety[Predmet],Výpočty!$C28,tblZnámkyZaPredmety[Typ],Výpočty!AI$5)*Nastavenie!K31,\"\")","v":""},0,{"$f":"SUMIFS(Nastavenie!E31:K31,Výpočty!AC28:AI28,\">0\")","v":0},"","",""]
[null,null,{"$f":"IF(Nastavenie!C32=\"\",\"\",Nastavenie!C32)","v":""},"","","","","","","","","","","","","","","","","","","","","","","","","",{"$f":"IFERROR(AVERAGEIFS(tblZnámkyZaPredmety[Výsledky],tblZnámkyZaPredmety[Predmet],Výpočty!$C29,tblZnámkyZaPredmety[Typ],Výpočty!AC$5)*Nastavenie!E32,\"\")","v":""},{"$f":"IFERROR(AVERAGEIFS(tblZnámkyZaPredmety[Výsledky],tblZnámkyZaPredmety[Predmet],Výpočty!$C29,tblZnámkyZaPredmety[Typ],Výpočty!AD$5)*Nastavenie!F32,\"\")","v":""},{"$f":"IFERROR(AVERAGEIFS(tblZnámkyZaPredmety[Výsledky],tblZnámkyZaPredmety[Predmet],Výpočty!$C29,tblZnámkyZaPredmety[Typ],Výpočty!AE$5)*Nastavenie!G32,\"\")","v":""},{"$f":"IFERROR(AVERAGEIFS(tblZnámkyZaPredmety[Výsledky],tblZnámkyZaPredmety[Predmet],Výpočty!$C29,tblZnámkyZaPredmety[Typ],Výpočty!AF$5)*Nastavenie!H32,\"\")","v":""},{"$f":"IFERROR(AVERAGEIFS(tblZnámkyZaPredmety[Výsledky],tblZnámkyZaPredmety[Predmet],Výpočty!$C29,tblZnámkyZaPredmety[Typ],Výpočty!AG$5)*Nastavenie!I32,\"\")","v":""},{"$f":"IFERROR(AVERAGEIFS(tblZnámkyZaPredmety[Výsledky],tblZnámkyZaPredmety[Predmet],Výpočty!$C29,tblZnámkyZaPredmety[Typ],Výpočty!AH$5)*Nastavenie!J32,\"\")","v":""},{"$f":"IFERROR(AVERAGEIFS(tblZnámkyZaPredmety[Výsledky],tblZnámkyZaPredmety[Predmet],Výpočty!$C29,tblZnámkyZaPredmety[Typ],Výpočty!AI$5)*Nastavenie!K32,\"\")","v":""},0,{"$f":"SUMIFS(Nastavenie!E32:K32,Výpočty!AC29:AI29,\">0\")","v":0},"","",""]
[null,null,{"$f":"IF(Nastavenie!C33=\"\",\"\",Nastavenie!C33)","v":""},"","","","","","","","","","","","","","","","","","","","","","","","","",{"$f":"IFERROR(AVERAGEIFS(tblZnámkyZaPredmety[Výsledky],tblZnámkyZaPredmety[Predmet],Výpočty!$C30,tblZnámkyZaPredmety[Typ],Výpočty!AC$5)*Nastavenie!E33,\"\")","v":""},{"$f":"IFERROR(AVERAGEIFS(tblZnámkyZaPredmety[Výsledky],tblZnámkyZaPredmety[Predmet],Výpočty!$C30,tblZnámkyZaPredmety[Typ],Výpočty!AD$5)*Nastavenie!F33,\"\")","v":""},{"$f":"IFERROR(AVERAGEIFS(tblZnámkyZaPredmety[Výsledky],tblZnámkyZaPredmety[Predmet],Výpočty!$C30,tblZnámkyZaPredmety[Typ],Výpočty!AE$5)*Nastavenie!G33,\"\")","v":""},{"$f":"IFERROR(AVERAGEIFS(tblZnámkyZaPredmety[Výsledky],tblZnámkyZaPredmety[Predmet],Výpočty!$C30,tblZnámkyZaPredmety[Typ],Výpočty!AF$5)*Nastavenie!H33,\"\")","v":""},{"$f":"IFERROR(AVERAGEIFS(tblZnámkyZaPredmety[Výsledky],tblZnámkyZaPredmety[Predmet],Výpočty!$C30,tblZnámkyZaPredmety[Typ],Výpočty!AG$5)*Nastavenie!I33,\"\")","v":""},{"$f":"IFERROR(AVERAGEIFS(tblZnámkyZaPredmety[Výsledky],tblZnámkyZaPredmety[Predmet],Výpočty!$C30,tblZnámkyZaPredmety[Typ],Výpočty!AH$5)*Nastavenie!J33,\"\")","v":""},{"$f":"IFERROR(AVERAGEIFS(tblZnámkyZaPredmety[Výsledky],tblZnámkyZaPredmety[Predmet],Výpočty!$C30,tblZnámkyZaPredmety[Typ],Výpočty!AI$5)*Nastavenie!K33,\"\")","v":""},0,{"$f":"SUMIFS(Nastavenie!E33:K33,Výpočty!AC30:AI30,\">0\")","v":0},"","",""]
[]
[]
[null,1,{"$f":"'Evidencia výsledkov'!C4&COUNTIF('Evidencia výsledkov'!$C$4:C4,'Evidencia výsledkov'!C4)","v":"Súčasná francúzština1"}]
[null,2,{"$f":"'Evidencia výsledkov'!C5&COUNTIF('Evidencia výsledkov'!$C$4:C5,'Evidencia výsledkov'!C5)","v":"Pokročilé programovanie v jazyku Java1"}]
[null,3,{"$f":"'Evidencia výsledkov'!C6&COUNTIF('Evidencia výsledkov'!$C$4:C6,'Evidencia výsledkov'!C6)","v":"Španielčina1"}]
[null,4,{"$f":"'Evidencia výsledkov'!C7&COUNTIF('Evidencia výsledkov'!$C$4:C7,'Evidencia výsledkov'!C7)","v":"Teoretická fyzika1"}]
[null,5,{"$f":"'Evidencia výsledkov'!C8&COUNTIF('Evidencia výsledkov'!$C$4:C8,'Evidencia výsledkov'!C8)","v":"Súčasná francúzština2"}]
[null,6,{"$f":"'Evidencia výsledkov'!C9&COUNTIF('Evidencia výsledkov'!$C$4:C9,'Evidencia výsledkov'!C9)","v":"Súčasná francúzština3"}]
[null,7,{"$f":"'Evidencia výsledkov'!C10&COUNTIF('Evidencia výsledkov'!$C$4:C10,'Evidencia výsledkov'!C10)","v":"Tvorivé písanie1"}]
[null,8,{"$f":"'Evidencia výsledkov'!C11&COUNTIF('Evidencia výsledkov'!$C$4:C11,'Evidencia výsledkov'!C11)","v":"Matematika 11"}]
[null,9,{"$f":"'Evidencia výsledkov'!C12&COUNTIF('Evidencia výsledkov'!$C$4:C12,'Evidencia výsledkov'!C12)","v":"Matematika 21"}]
[null,10,{"$f":"'Evidencia výsledkov'!C13&COUNTIF('Evidencia výsledkov'!$C$4:C13,'Evidencia výsledkov'!C13)","v":"Matematika 12"}]
[null,11,{"$f":"'Evidencia výsledkov'!C14&COUNTIF('Evidencia výsledkov'!$C$4:C14,'Evidencia výsledkov'!C14)","v":"Matematika 22"}]
[null,12,{"$f":"'Evidencia výsledkov'!C15&COUNTIF('Evidencia výsledkov'!$C$4:C15,'Evidencia výsledkov'!C15)","v":"0"}]
[null,13,{"$f":"'Evidencia výsledkov'!C16&COUNTIF('Evidencia výsledkov'!$C$4:C16,'Evidencia výsledkov'!C16)","v":"0"}]
[null,14,{"$f":"'Evidencia výsledkov'!C17&COUNTIF('Evidencia výsledkov'!$C$4:C17,'Evidencia výsledkov'!C17)","v":"0"}]
[null,15,{"$f":"'Evidencia výsledkov'!C18&COUNTIF('Evidencia výsledkov'!$C$4:C18,'Evidencia výsledkov'!C18)","v":"0"}]
[null,16,{"$f":"'Evidencia výsledkov'!C19&COUNTIF('Evidencia výsledkov'!$C$4:C19,'Evidencia výsledkov'!C19)","v":"0"}]
[null,17,{"$f":"'Evidencia výsledkov'!C20&COUNTIF('Evidencia výsledkov'!$C$4:C20,'Evidencia výsledkov'!C20)","v":"0"}]
[null,18,{"$f":"'Evidencia výsledkov'!C21&COUNTIF('Evidencia výsledkov'!$C$4:C21,'Evidencia výsledkov'!C21)","v":"0"}]
[null,19,{"$f":"'Evidencia výsledkov'!C22&COUNTIF('Evidencia výsledkov'!$C$4:C22,'Evidencia výsledkov'!C22)","v":"0"}]
[null,20,{"$f":"'Evidencia výsledkov'!C23&COUNTIF('Evidencia výsledkov'!$C$4:C23,'Evidencia výsledkov'!C23)","v":"0"}]
[null,21,{"$f":"'Evidencia výsledkov'!C24&COUNTIF('Evidencia výsledkov'!$C$4:C24,'Evidencia výsledkov'!C24)","v":"0"}]
[null,22,{"$f":"'Evidencia výsledkov'!C25&COUNTIF('Evidencia výsledkov'!$C$4:C25,'Evidencia výsledkov'!C25)","v":"0"}]
[null,23,{"$f":"'Evidencia výsledkov'!C26&COUNTIF('Evidencia výsledkov'!$C$4:C26,'Evidencia výsledkov'!C26)","v":"0"}]
[null,24,{"$f":"'Evidencia výsledkov'!C27&COUNTIF('Evidencia výsledkov'!$C$4:C27,'Evidencia výsledkov'!C27)","v":"0"}]
[null,25,{"$f":"'Evidencia výsledkov'!C28&COUNTIF('Evidencia výsledkov'!$C$4:C28,'Evidencia výsledkov'!C28)","v":"0"}]
[null,26,{"$f":"'Evidencia výsledkov'!C29&COUNTIF('Evidencia výsledkov'!$C$4:C29,'Evidencia výsledkov'!C29)","v":"0"}]
[null,27,{"$f":"'Evidencia výsledkov'!C30&COUNTIF('Evidencia výsledkov'!$C$4:C30,'Evidencia výsledkov'!C30)","v":"0"}]
[null,28,{"$f":"'Evidencia výsledkov'!C31&COUNTIF('Evidencia výsledkov'!$C$4:C31,'Evidencia výsledkov'!C31)","v":"0"}]
[null,29,{"$f":"'Evidencia výsledkov'!C32&COUNTIF('Evidencia výsledkov'!$C$4:C32,'Evidencia výsledkov'!C32)","v":"0"}]
[null,30,{"$f":"'Evidencia výsledkov'!C33&COUNTIF('Evidencia výsledkov'!$C$4:C33,'Evidencia výsledkov'!C33)","v":"0"}]
[null,31,{"$f":"'Evidencia výsledkov'!C34&COUNTIF('Evidencia výsledkov'!$C$4:C34,'Evidencia výsledkov'!C34)","v":"0"}]
[null,32,{"$f":"'Evidencia výsledkov'!C35&COUNTIF('Evidencia výsledkov'!$C$4:C35,'Evidencia výsledkov'!C35)","v":"0"}]
[null,33,{"$f":"'Evidencia výsledkov'!C36&COUNTIF('Evidencia výsledkov'!$C$4:C36,'Evidencia výsledkov'!C36)","v":"0"}]
[null,34,{"$f":"'Evidencia výsledkov'!C37&COUNTIF('Evidencia výsledkov'!$C$4:C37,'Evidencia výsledkov'!C37)","v":"0"}]
[null,35,{"$f":"'Evidencia výsledkov'!C38&COUNTIF('Evidencia výsledkov'!$C$4:C38,'Evidencia výsledkov'!C38)","v":"0"}]
[null,36,{"$f":"'Evidencia výsledkov'!C39&COUNTIF('Evidencia výsledkov'!$C$4:C39,'Evidencia výsledkov'!C39)","v":"0"}]
[null,37,{"$f":"'Evidencia výsledkov'!C40&COUNTIF('Evidencia výsledkov'!$C$4:C40,'Evidencia výsledkov'!C40)","v":"0"}]
[null,38,{"$f":"'Evidencia výsledkov'!C41&COUNTIF('Evidencia výsledkov'!$C$4:C41,'Evidencia výsledkov'!C41)","v":"0"}]
[null,39,{"$f":"'Evidencia výsledkov'!C42&COUNTIF('Evidencia výsledkov'!$C$4:C42,'Evidencia výsledkov'!C42)","v":"0"}]
[null,40,{"$f":"'Evidencia výsledkov'!C43&COUNTIF('Evidencia výsledkov'!$C$4:C43,'Evidencia výsledkov'!C43)","v":"0"}]
[null,41,{"$f":"'Evidencia výsledkov'!C44&COUNTIF('Evidencia výsledkov'!$C$4:C44,'Evidencia výsledkov'!C44)","v":"0"}]
[null,42,{"$f":"'Evidencia výsledkov'!C45&COUNTIF('Evidencia výsledkov'!$C$4:C45,'Evidencia výsledkov'!C45)","v":"0"}]
[null,43,{"$f":"'Evidencia výsledkov'!C46&COUNTIF('Evidencia výsledkov'!$C$4:C46,'Evidencia výsledkov'!C46)","v":"0"}]
[null,44,{"$f":"'Evidencia výsledkov'!C47&COUNTIF('Evidencia výsledkov'!$C$4:C47,'Evidencia výsledkov'!C47)","v":"0"}]
[null,45,{"$f":"'Evidencia výsledkov'!C48&COUNTIF('Evidencia výsledkov'!$C$4:C48,'Evidencia výsledkov'!C48)","v":"0"}]
[null,46,{"$f":"'Evidencia výsledkov'!C49&COUNTIF('Evidencia výsledkov'!$C$4:C49,'Evidencia výsledkov'!C49)","v":"0"}]
[null,47,{"$f":"'Evidencia výsledkov'!C50&COUNTIF('Evidencia výsledkov'!$C$4:C50,'Evidencia výsledkov'!C50)","v":"0"}]
[null,48,{"$f":"'Evidencia výsledkov'!C51&COUNTIF('Evidencia výsledkov'!$C$4:C51,'Evidencia výsledkov'!C51)","v":"0"}]
[null,49,{"$f":"'Evidencia výsledkov'!C52&COUNTIF('Evidencia výsledkov'!$C$4:C52,'Evidencia výsledkov'!C52)","v":"0"}]
[null,50,{"$f":"'Evidencia výsledkov'!C53&COUNTIF('Evidencia výsledkov'!$C$4:C53,'Evidencia výsledkov'!C53)","v":"0"}]
[null,51,{"$f":"'Evidencia výsledkov'!C54&COUNTIF('Evidencia výsledkov'!$C$4:C54,'Evidencia výsledkov'!C54)","v":"0"}]
[null,52,{"$f":"'Evidencia výsledkov'!C55&COUNTIF('Evidencia výsledkov'!$C$4:C55,'Evidencia výsledkov'!C55)","v":"0"}]
[null,53,{"$f":"'Evidencia výsledkov'!C56&COUNTIF('Evidencia výsledkov'!$C$4:C56,'Evidencia výsledkov'!C56)","v":"0"}]
[null,54,{"$f":"'Evidencia výsledkov'!C57&COUNTIF('Evidencia výsledkov'!$C$4:C57,'Evidencia výsledkov'!C57)","v":"0"}]
[null,55,{"$f":"'Evidencia výsledkov'!C58&COUNTIF('Evidencia výsledkov'!$C$4:C58,'Evidencia výsledkov'!C58)","v":"0"}]
[null,56,{"$f":"'Evidencia výsledkov'!C59&COUNTIF('Evidencia výsledkov'!$C$4:C59,'Evidencia výsledkov'!C59)","v":"0"}]
[null,57,{"$f":"'Evidencia výsledkov'!C60&COUNTIF('Evidencia výsledkov'!$C$4:C60,'Evidencia výsledkov'!C60)","v":"0"}]
[null,58,{"$f":"'Evidencia výsledkov'!C61&COUNTIF('Evidencia výsledkov'!$C$4:C61,'Evidencia výsledkov'!C61)","v":"0"}]
[null,59,{"$f":"'Evidencia výsledkov'!C62&COUNTIF('Evidencia výsledkov'!$C$4:C62,'Evidencia výsledkov'!C62)","v":"0"}]
[null,60,{"$f":"'Evidencia výsledkov'!C63&COUNTIF('Evidencia výsledkov'!$C$4:C63,'Evidencia výsledkov'!C63)","v":"0"}]
[null,61,{"$f":"'Evidencia výsledkov'!C64&COUNTIF('Evidencia výsledkov'!$C$4:C64,'Evidencia výsledkov'!C64)","v":"0"}]
[null,62,{"$f":"'Evidencia výsledkov'!C65&COUNTIF('Evidencia výsledkov'!$C$4:C65,'Evidencia výsledkov'!C65)","v":"0"}]
[null,63,{"$f":"'Evidencia výsledkov'!C66&COUNTIF('Evidencia výsledkov'!$C$4:C66,'Evidencia výsledkov'!C66)","v":"0"}]
[null,64,{"$f":"'Evidencia výsledkov'!C67&COUNTIF('Evidencia výsledkov'!$C$4:C67,'Evidencia výsledkov'!C67)","v":"0"}]
[null,65,{"$f":"'Evidencia výsledkov'!C68&COUNTIF('Evidencia výsledkov'!$C$4:C68,'Evidencia výsledkov'!C68)","v":"0"}]
[null,66,{"$f":"'Evidencia výsledkov'!C69&COUNTIF('Evidencia výsledkov'!$C$4:C69,'Evidencia výsledkov'!C69)","v":"0"}]
[null,67,{"$f":"'Evidencia výsledkov'!C70&COUNTIF('Evidencia výsledkov'!$C$4:C70,'Evidencia výsledkov'!C70)","v":"0"}]
[null,68,{"$f":"'Evidencia výsledkov'!C71&COUNTIF('Evidencia výsledkov'!$C$4:C71,'Evidencia výsledkov'!C71)","v":"0"}]
[null,69,{"$f":"'Evidencia výsledkov'!C72&COUNTIF('Evidencia výsledkov'!$C$4:C72,'Evidencia výsledkov'!C72)","v":"0"}]
[null,70,{"$f":"'Evidencia výsledkov'!C73&COUNTIF('Evidencia výsledkov'!$C$4:C73,'Evidencia výsledkov'!C73)","v":"0"}]
[null,71,{"$f":"'Evidencia výsledkov'!C74&COUNTIF('Evidencia výsledkov'!$C$4:C74,'Evidencia výsledkov'!C74)","v":"0"}]
[null,72,{"$f":"'Evidencia výsledkov'!C75&COUNTIF('Evidencia výsledkov'!$C$4:C75,'Evidencia výsledkov'!C75)","v":"0"}]
[null,73,{"$f":"'Evidencia výsledkov'!C76&COUNTIF('Evidencia výsledkov'!$C$4:C76,'Evidencia výsledkov'!C76)","v":"0"}]
[null,74,{"$f":"'Evidencia výsledkov'!C77&COUNTIF('Evidencia výsledkov'!$C$4:C77,'Evidencia výsledkov'!C77)","v":"0"}]
[null,75,{"$f":"'Evidencia výsledkov'!C78&COUNTIF('Evidencia výsledkov'!$C$4:C78,'Evidencia výsledkov'!C78)","v":"0"}]
[null,76,{"$f":"'Evidencia výsledkov'!C79&COUNTIF('Evidencia výsledkov'!$C$4:C79,'Evidencia výsledkov'!C79)","v":"0"}]
[null,77,{"$f":"'Evidencia výsledkov'!C80&COUNTIF('Evidencia výsledkov'!$C$4:C80,'Evidencia výsledkov'!C80)","v":"0"}]
[null,78,{"$f":"'Evidencia výsledkov'!C81&COUNTIF('Evidencia výsledkov'!$C$4:C81,'Evidencia výsledkov'!C81)","v":"0"}]
[null,79,{"$f":"'Evidencia výsledkov'!C82&COUNTIF('Evidencia výsledkov'!$C$4:C82,'Evidencia výsledkov'!C82)","v":"0"}]
[null,80,{"$f":"'Evidencia výsledkov'!C83&COUNTIF('Evidencia výsledkov'!$C$4:C83,'Evidencia výsledkov'!C83)","v":"0"}]
[null,81,{"$f":"'Evidencia výsledkov'!C84&COUNTIF('Evidencia výsledkov'!$C$4:C84,'Evidencia výsledkov'!C84)","v":"0"}]
[null,82,{"$f":"'Evidencia výsledkov'!C85&COUNTIF('Evidencia výsledkov'!$C$4:C85,'Evidencia výsledkov'!C85)","v":"0"}]
[null,83,{"$f":"'Evidencia výsledkov'!C86&COUNTIF('Evidencia výsledkov'!$C$4:C86,'Evidencia výsledkov'!C86)","v":"0"}]
[null,84,{"$f":"'Evidencia výsledkov'!C87&COUNTIF('Evidencia výsledkov'!$C$4:C87,'Evidencia výsledkov'!C87)","v":"0"}]
[null,85,{"$f":"'Evidencia výsledkov'!C88&COUNTIF('Evidencia výsledkov'!$C$4:C88,'Evidencia výsledkov'!C88)","v":"0"}]
[null,86,{"$f":"'Evidencia výsledkov'!C89&COUNTIF('Evidencia výsledkov'!$C$4:C89,'Evidencia výsledkov'!C89)","v":"0"}]
[null,87,{"$f":"'Evidencia výsledkov'!C90&COUNTIF('Evidencia výsledkov'!$C$4:C90,'Evidencia výsledkov'!C90)","v":"0"}]
[null,88,{"$f":"'Evidencia výsledkov'!C91&COUNTIF('Evidencia výsledkov'!$C$4:C91,'Evidencia výsledkov'!C91)","v":"0"}]
[null,89,{"$f":"'Evidencia výsledkov'!C92&COUNTIF('Evidencia výsledkov'!$C$4:C92,'Evidencia výsledkov'!C92)","v":"0"}]
[null,90,{"$f":"'Evidencia výsledkov'!C93&COUNTIF('Evidencia výsledkov'!$C$4:C93,'Evidencia výsledkov'!C93)","v":"0"}]
[null,91,{"$f":"'Evidencia výsledkov'!C94&COUNTIF('Evidencia výsledkov'!$C$4:C94,'Evidencia výsledkov'!C94)","v":"0"}]
[null,92,{"$f":"'Evidencia výsledkov'!C95&COUNTIF('Evidencia výsledkov'!$C$4:C95,'Evidencia výsledkov'!C95)","v":"0"}]
[null,93,{"$f":"'Evidencia výsledkov'!C96&COUNTIF('Evidencia výsledkov'!$C$4:C96,'Evidencia výsledkov'!C96)","v":"0"}]
[null,94,{"$f":"'Evidencia výsledkov'!C97&COUNTIF('Evidencia výsledkov'!$C$4:C97,'Evidencia výsledkov'!C97)","v":"0"}]
[null,95,{"$f":"'Evidencia výsledkov'!C98&COUNTIF('Evidencia výsledkov'!$C$4:C98,'Evidencia výsledkov'!C98)","v":"0"}]
[null,96,{"$f":"'Evidencia výsledkov'!C99&COUNTIF('Evidencia výsledkov'!$C$4:C99,'Evidencia výsledkov'!C99)","v":"0"}]
[null,97,{"$f":"'Evidencia výsledkov'!C100&COUNTIF('Evidencia výsledkov'!$C$4:C100,'Evidencia výsledkov'!C100)","v":"0"}]
[null,98,{"$f":"'Evidencia výsledkov'!C101&COUNTIF('Evidencia výsledkov'!$C$4:C101,'Evidencia výsledkov'!C101)","v":"0"}]
[null,99,{"$f":"'Evidencia výsledkov'!C102&COUNTIF('Evidencia výsledkov'!$C$4:C102,'Evidencia výsledkov'!C102)","v":"0"}]
[null,100,{"$f":"'Evidencia výsledkov'!C103&COUNTIF('Evidencia výsledkov'!$C$4:C103,'Evidencia výsledkov'!C103)","v":"0"}]
[null,101,{"$f":"'Evidencia výsledkov'!C104&COUNTIF('Evidencia výsledkov'!$C$4:C104,'Evidencia výsledkov'!C104)","v":"0"}]
[null,102,{"$f":"'Evidencia výsledkov'!C105&COUNTIF('Evidencia výsledkov'!$C$4:C105,'Evidencia výsledkov'!C105)","v":"0"}]
[null,103,{"$f":"'Evidencia výsledkov'!C106&COUNTIF('Evidencia výsledkov'!$C$4:C106,'Evidencia výsledkov'!C106)","v":"0"}]
[null,104,{"$f":"'Evidencia výsledkov'!C107&COUNTIF('Evidencia výsledkov'!$C$4:C107,'Evidencia výsledkov'!C107)","v":"0"}]
[null,105,{"$f":"'Evidencia výsledkov'!C108&COUNTIF('Evidencia výsledkov'!$C$4:C108,'Evidencia výsledkov'!C108)","v":"0"}]
[null,106,{"$f":"'Evidencia výsledkov'!C109&COUNTIF('Evidencia výsledkov'!$C$4:C109,'Evidencia výsledkov'!C109)","v":"0"}]
[null,107,{"$f":"'Evidencia výsledkov'!C110&COUNTIF('Evidencia výsledkov'!$C$4:C110,'Evidencia výsledkov'!C110)","v":"0"}]
[null,108,{"$f":"'Evidencia výsledkov'!C111&COUNTIF('Evidencia výsledkov'!$C$4:C111,'Evidencia výsledkov'!C111)","v":"0"}]
[null,109,{"$f":"'Evidencia výsledkov'!C112&COUNTIF('Evidencia výsledkov'!$C$4:C112,'Evidencia výsledkov'!C112)","v":"0"}]
[null,110,{"$f":"'Evidencia výsledkov'!C113&COUNTIF('Evidencia výsledkov'!$C$4:C113,'Evidencia výsledkov'!C113)","v":"0"}]
[null,111,{"$f":"'Evidencia výsledkov'!C114&COUNTIF('Evidencia výsledkov'!$C$4:C114,'Evidencia výsledkov'!C114)","v":"0"}]
[null,112,{"$f":"'Evidencia výsledkov'!C115&COUNTIF('Evidencia výsledkov'!$C$4:C115,'Evidencia výsledkov'!C115)","v":"0"}]
[null,113,{"$f":"'Evidencia výsledkov'!C116&COUNTIF('Evidencia výsledkov'!$C$4:C116,'Evidencia výsledkov'!C116)","v":"0"}]
[null,114,{"$f":"'Evidencia výsledkov'!C117&COUNTIF('Evidencia výsledkov'!$C$4:C117,'Evidencia výsledkov'!C117)","v":"0"}]
[null,115,{"$f":"'Evidencia výsledkov'!C118&COUNTIF('Evidencia výsledkov'!$C$4:C118,'Evidencia výsledkov'!C118)","v":"0"}]
[null,116,{"$f":"'Evidencia výsledkov'!C119&COUNTIF('Evidencia výsledkov'!$C$4:C119,'Evidencia výsledkov'!C119)","v":"0"}]
[null,117,{"$f":"'Evidencia výsledkov'!C120&COUNTIF('Evidencia výsledkov'!$C$4:C120,'Evidencia výsledkov'!C120)","v":"0"}]
[null,118,{"$f":"'Evidencia výsledkov'!C121&COUNTIF('Evidencia výsledkov'!$C$4:C121,'Evidencia výsledkov'!C121)","v":"0"}]
[null,119,{"$f":"'Evidencia výsledkov'!C122&COUNTIF('Evidencia výsledkov'!$C$4:C122,'Evidencia výsledkov'!C122)","v":"0"}]
[null,120,{"$f":"'Evidencia výsledkov'!C123&COUNTIF('Evidencia výsledkov'!$C$4:C123,'Evidencia výsledkov'!C123)","v":"0"}]
[null,121,{"$f":"'Evidencia výsledkov'!C124&COUNTIF('Evidencia výsledkov'!$C$4:C124,'Evidencia výsledkov'!C124)","v":"0"}]
[null,122,{"$f":"'Evidencia výsledkov'!C125&COUNTIF('Evidencia výsledkov'!$C$4:C125,'Evidencia výsledkov'!C125)","v":"0"}]
[null,123,{"$f":"'Evidencia výsledkov'!C126&COUNTIF('Evidencia výsledkov'!$C$4:C126,'Evidencia výsledkov'!C126)","v":"0"}]
[null,124,{"$f":"'Evidencia výsledkov'!C127&COUNTIF('Evidencia výsledkov'!$C$4:C127,'Evidencia výsledkov'!C127)","v":"0"}]
[null,125,{"$f":"'Evidencia výsledkov'!C128&COUNTIF('Evidencia výsledkov'!$C$4:C128,'Evidencia výsledkov'!C128)","v":"0"}]
[null,126,{"$f":"'Evidencia výsledkov'!C129&COUNTIF('Evidencia výsledkov'!$C$4:C129,'Evidencia výsledkov'!C129)","v":"0"}]
[null,127,{"$f":"'Evidencia výsledkov'!C130&COUNTIF('Evidencia výsledkov'!$C$4:C130,'Evidencia výsledkov'!C130)","v":"0"}]
[null,128,{"$f":"'Evidencia výsledkov'!C131&COUNTIF('Evidencia výsledkov'!$C$4:C131,'Evidencia výsledkov'!C131)","v":"0"}]
[null,129,{"$f":"'Evidencia výsledkov'!C132&COUNTIF('Evidencia výsledkov'!$C$4:C132,'Evidencia výsledkov'!C132)","v":"0"}]
[null,130,{"$f":"'Evidencia výsledkov'!C133&COUNTIF('Evidencia výsledkov'!$C$4:C133,'Evidencia výsledkov'!C133)","v":"0"}]
[null,131,{"$f":"'Evidencia výsledkov'!C134&COUNTIF('Evidencia výsledkov'!$C$4:C134,'Evidencia výsledkov'!C134)","v":"0"}]
[null,132,{"$f":"'Evidencia výsledkov'!C135&COUNTIF('Evidencia výsledkov'!$C$4:C135,'Evidencia výsledkov'!C135)","v":"0"}]
[null,133,{"$f":"'Evidencia výsledkov'!C136&COUNTIF('Evidencia výsledkov'!$C$4:C136,'Evidencia výsledkov'!C136)","v":"0"}]
[null,134,{"$f":"'Evidencia výsledkov'!C137&COUNTIF('Evidencia výsledkov'!$C$4:C137,'Evidencia výsledkov'!C137)","v":"0"}]
[null,135,{"$f":"'Evidencia výsledkov'!C138&COUNTIF('Evidencia výsledkov'!$C$4:C138,'Evidencia výsledkov'!C138)","v":"0"}]
[null,136,{"$f":"'Evidencia výsledkov'!C139&COUNTIF('Evidencia výsledkov'!$C$4:C139,'Evidencia výsledkov'!C139)","v":"0"}]
[null,137,{"$f":"'Evidencia výsledkov'!C140&COUNTIF('Evidencia výsledkov'!$C$4:C140,'Evidencia výsledkov'!C140)","v":"0"}]
[null,138,{"$f":"'Evidencia výsledkov'!C141&COUNTIF('Evidencia výsledkov'!$C$4:C141,'Evidencia výsledkov'!C141)","v":"0"}]
[null,139,{"$f":"'Evidencia výsledkov'!C142&COUNTIF('Evidencia výsledkov'!$C$4:C142,'Evidencia výsledkov'!C142)","v":"0"}]
[null,140,{"$f":"'Evidencia výsledkov'!C143&COUNTIF('Evidencia výsledkov'!$C$4:C143,'Evidencia výsledkov'!C143)","v":"0"}]
[null,141,{"$f":"'Evidencia výsledkov'!C144&COUNTIF('Evidencia výsledkov'!$C$4:C144,'Evidencia výsledkov'!C144)","v":"0"}]
[null,142,{"$f":"'Evidencia výsledkov'!C145&COUNTIF('Evidencia výsledkov'!$C$4:C145,'Evidencia výsledkov'!C145)","v":"0"}]
[null,143,{"$f":"'Evidencia výsledkov'!C146&COUNTIF('Evidencia výsledkov'!$C$4:C146,'Evidencia výsledkov'!C146)","v":"0"}]
[null,144,{"$f":"'Evidencia výsledkov'!C147&COUNTIF('Evidencia výsledkov'!$C$4:C147,'Evidencia výsledkov'!C147)","v":"0"}]
[null,145,{"$f":"'Evidencia výsledkov'!C148&COUNTIF('Evidencia výsledkov'!$C$4:C148,'Evidencia výsledkov'!C148)","v":"0"}]
[null,146,{"$f":"'Evidencia výsledkov'!C149&COUNTIF('Evidencia výsledkov'!$C$4:C149,'Evidencia výsledkov'!C149)","v":"0"}]
[null,147,{"$f":"'Evidencia výsledkov'!C150&COUNTIF('Evidencia výsledkov'!$C$4:C150,'Evidencia výsledkov'!C150)","v":"0"}]
[null,148,{"$f":"'Evidencia výsledkov'!C151&COUNTIF('Evidencia výsledkov'!$C$4:C151,'Evidencia výsledkov'!C151)","v":"0"}]
[null,149,{"$f":"'Evidencia výsledkov'!C152&COUNTIF('Evidencia výsledkov'!$C$4:C152,'Evidencia výsledkov'!C152)","v":"0"}]
[null,150,{"$f":"'Evidencia výsledkov'!C153&COUNTIF('Evidencia výsledkov'!$C$4:C153,'Evidencia výsledkov'!C153)","v":"0"}]
[null,151,{"$f":"'Evidencia výsledkov'!C154&COUNTIF('Evidencia výsledkov'!$C$4:C154,'Evidencia výsledkov'!C154)","v":"0"}]
[null,152,{"$f":"'Evidencia výsledkov'!C155&COUNTIF('Evidencia výsledkov'!$C$4:C155,'Evidencia výsledkov'!C155)","v":"0"}]
[null,153,{"$f":"'Evidencia výsledkov'!C156&COUNTIF('Evidencia výsledkov'!$C$4:C156,'Evidencia výsledkov'!C156)","v":"0"}]
[null,154,{"$f":"'Evidencia výsledkov'!C157&COUNTIF('Evidencia výsledkov'!$C$4:C157,'Evidencia výsledkov'!C157)","v":"0"}]
[null,155,{"$f":"'Evidencia výsledkov'!C158&COUNTIF('Evidencia výsledkov'!$C$4:C158,'Evidencia výsledkov'!C158)","v":"0"}]
[null,156,{"$f":"'Evidencia výsledkov'!C159&COUNTIF('Evidencia výsledkov'!$C$4:C159,'Evidencia výsledkov'!C159)","v":"0"}]
[null,157,{"$f":"'Evidencia výsledkov'!C160&COUNTIF('Evidencia výsledkov'!$C$4:C160,'Evidencia výsledkov'!C160)","v":"0"}]
[null,158,{"$f":"'Evidencia výsledkov'!C161&COUNTIF('Evidencia výsledkov'!$C$4:C161,'Evidencia výsledkov'!C161)","v":"0"}]
[null,159,{"$f":"'Evidencia výsledkov'!C162&COUNTIF('Evidencia výsledkov'!$C$4:C162,'Evidencia výsledkov'!C162)","v":"0"}]
[null,160,{"$f":"'Evidencia výsledkov'!C163&COUNTIF('Evidencia výsledkov'!$C$4:C163,'Evidencia výsledkov'!C163)","v":"0"}]
[null,161,{"$f":"'Evidencia výsledkov'!C164&COUNTIF('Evidencia výsledkov'!$C$4:C164,'Evidencia výsledkov'!C164)","v":"0"}]
[null,162,{"$f":"'Evidencia výsledkov'!C165&COUNTIF('Evidencia výsledkov'!$C$4:C165,'Evidencia výsledkov'!C165)","v":"0"}]
[null,163,{"$f":"'Evidencia výsledkov'!C166&COUNTIF('Evidencia výsledkov'!$C$4:C166,'Evidencia výsledkov'!C166)","v":"0"}]
[null,164,{"$f":"'Evidencia výsledkov'!C167&COUNTIF('Evidencia výsledkov'!$C$4:C167,'Evidencia výsledkov'!C167)","v":"0"}]
[null,165,{"$f":"'Evidencia výsledkov'!C168&COUNTIF('Evidencia výsledkov'!$C$4:C168,'Evidencia výsledkov'!C168)","v":"0"}]
[null,166,{"$f":"'Evidencia výsledkov'!C169&COUNTIF('Evidencia výsledkov'!$C$4:C169,'Evidencia výsledkov'!C169)","v":"0"}]
[null,167,{"$f":"'Evidencia výsledkov'!C170&COUNTIF('Evidencia výsledkov'!$C$4:C170,'Evidencia výsledkov'!C170)","v":"0"}]
[null,168,{"$f":"'Evidencia výsledkov'!C171&COUNTIF('Evidencia výsledkov'!$C$4:C171,'Evidencia výsledkov'!C171)","v":"0"}]
[null,169,{"$f":"'Evidencia výsledkov'!C172&COUNTIF('Evidencia výsledkov'!$C$4:C172,'Evidencia výsledkov'!C172)","v":"0"}]
[null,170,{"$f":"'Evidencia výsledkov'!C173&COUNTIF('Evidencia výsledkov'!$C$4:C173,'Evidencia výsledkov'!C173)","v":"0"}]
[null,171,{"$f":"'Evidencia výsledkov'!C174&COUNTIF('Evidencia výsledkov'!$C$4:C174,'Evidencia výsledkov'!C174)","v":"0"}]
[null,172,{"$f":"'Evidencia výsledkov'!C175&COUNTIF('Evidencia výsledkov'!$C$4:C175,'Evidencia výsledkov'!C175)","v":"0"}]
[null,173,{"$f":"'Evidencia výsledkov'!C176&COUNTIF('Evidencia výsledkov'!$C$4:C176,'Evidencia výsledkov'!C176)","v":"0"}]
[null,174,{"$f":"'Evidencia výsledkov'!C177&COUNTIF('Evidencia výsledkov'!$C$4:C177,'Evidencia výsledkov'!C177)","v":"0"}]
[null,175,{"$f":"'Evidencia výsledkov'!C178&COUNTIF('Evidencia výsledkov'!$C$4:C178,'Evidencia výsledkov'!C178)","v":"0"}]
[null,176,{"$f":"'Evidencia výsledkov'!C179&COUNTIF('Evidencia výsledkov'!$C$4:C179,'Evidencia výsledkov'!C179)","v":"0"}]
[null,177,{"$f":"'Evidencia výsledkov'!C180&COUNTIF('Evidencia výsledkov'!$C$4:C180,'Evidencia výsledkov'!C180)","v":"0"}]
[null,178,{"$f":"'Evidencia výsledkov'!C181&COUNTIF('Evidencia výsledkov'!$C$4:C181,'Evidencia výsledkov'!C181)","v":"0"}]
[null,179,{"$f":"'Evidencia výsledkov'!C182&COUNTIF('Evidencia výsledkov'!$C$4:C182,'Evidencia výsledkov'!C182)","v":"0"}]
[null,180,{"$f":"'Evidencia výsledkov'!C183&COUNTIF('Evidencia výsledkov'!$C$4:C183,'Evidencia výsledkov'!C183)","v":"0"}]
[null,181,{"$f":"'Evidencia výsledkov'!C184&COUNTIF('Evidencia výsledkov'!$C$4:C184,'Evidencia výsledkov'!C184)","v":"0"}]
[null,182,{"$f":"'Evidencia výsledkov'!C185&COUNTIF('Evidencia výsledkov'!$C$4:C185,'Evidencia výsledkov'!C185)","v":"0"}]
[null,183,{"$f":"'Evidencia výsledkov'!C186&COUNTIF('Evidencia výsledkov'!$C$4:C186,'Evidencia výsledkov'!C186)","v":"0"}]
[null,184,{"$f":"'Evidencia výsledkov'!C187&COUNTIF('Evidencia výsledkov'!$C$4:C187,'Evidencia výsledkov'!C187)","v":"0"}]
[null,185,{"$f":"'Evidencia výsledkov'!C188&COUNTIF('Evidencia výsledkov'!$C$4:C188,'Evidencia výsledkov'!C188)","v":"0"}]
[null,186,{"$f":"'Evidencia výsledkov'!C189&COUNTIF('Evidencia výsledkov'!$C$4:C189,'Evidencia výsledkov'!C189)","v":"0"}]
[null,187,{"$f":"'Evidencia výsledkov'!C190&COUNTIF('Evidencia výsledkov'!$C$4:C190,'Evidencia výsledkov'!C190)","v":"0"}]
[null,188,{"$f":"'Evidencia výsledkov'!C191&COUNTIF('Evidencia výsledkov'!$C$4:C191,'Evidencia výsledkov'!C191)","v":"0"}]
[null,189,{"$f":"'Evidencia výsledkov'!C192&COUNTIF('Evidencia výsledkov'!$C$4:C192,'Evidencia výsledkov'!C192)","v":"0"}]
[null,190,{"$f":"'Evidencia výsledkov'!C193&COUNTIF('Evidencia výsledkov'!$C$4:C193,'Evidencia výsledkov'!C193)","v":"0"}]
[null,191,{"$f":"'Evidencia výsledkov'!C194&COUNTIF('Evidencia výsledkov'!$C$4:C194,'Evidencia výsledkov'!C194)","v":"0"}]
[null,192,{"$f":"'Evidencia výsledkov'!C195&COUNTIF('Evidencia výsledkov'!$C$4:C195,'Evidencia výsledkov'!C195)","v":"0"}]
[null,193,{"$f":"'Evidencia výsledkov'!C196&COUNTIF('Evidencia výsledkov'!$C$4:C196,'Evidencia výsledkov'!C196)","v":"0"}]
[null,194,{"$f":"'Evidencia výsledkov'!C197&COUNTIF('Evidencia výsledkov'!$C$4:C197,'Evidencia výsledkov'!C197)","v":"0"}]
[null,195,{"$f":"'Evidencia výsledkov'!C198&COUNTIF('Evidencia výsledkov'!$C$4:C198,'Evidencia výsledkov'!C198)","v":"0"}]
[null,196,{"$f":"'Evidencia výsledkov'!C199&COUNTIF('Evidencia výsledkov'!$C$4:C199,'Evidencia výsledkov'!C199)","v":"0"}]
[null,197,{"$f":"'Evidencia výsledkov'!C200&COUNTIF('Evidencia výsledkov'!$C$4:C200,'Evidencia výsledkov'!C200)","v":"0"}]
[null,198,{"$f":"'Evidencia výsledkov'!C201&COUNTIF('Evidencia výsledkov'!$C$4:C201,'Evidencia výsledkov'!C201)","v":"0"}]
[null,199,{"$f":"'Evidencia výsledkov'!C202&COUNTIF('Evidencia výsledkov'!$C$4:C202,'Evidencia výsledkov'!C202)","v":"0"}]
[null,200,{"$f":"'Evidencia výsledkov'!C203&COUNTIF('Evidencia výsledkov'!$C$4:C203,'Evidencia výsledkov'!C203)","v":"0"}]
[null,201,{"$f":"'Evidencia výsledkov'!C204&COUNTIF('Evidencia výsledkov'!$C$4:C204,'Evidencia výsledkov'!C204)","v":"0"}]
[null,202,{"$f":"'Evidencia výsledkov'!C205&COUNTIF('Evidencia výsledkov'!$C$4:C205,'Evidencia výsledkov'!C205)","v":"0"}]
[null,203,{"$f":"'Evidencia výsledkov'!C206&COUNTIF('Evidencia výsledkov'!$C$4:C206,'Evidencia výsledkov'!C206)","v":"0"}]
[null,204,{"$f":"'Evidencia výsledkov'!C207&COUNTIF('Evidencia výsledkov'!$C$4:C207,'Evidencia výsledkov'!C207)","v":"0"}]
[null,205,{"$f":"'Evidencia výsledkov'!C208&COUNTIF('Evidencia výsledkov'!$C$4:C208,'Evidencia výsledkov'!C208)","v":"0"}]
[null,206,{"$f":"'Evidencia výsledkov'!C209&COUNTIF('Evidencia výsledkov'!$C$4:C209,'Evidencia výsledkov'!C209)","v":"0"}]
[null,207,{"$f":"'Evidencia výsledkov'!C210&COUNTIF('Evidencia výsledkov'!$C$4:C210,'Evidencia výsledkov'!C210)","v":"0"}]
[null,208,{"$f":"'Evidencia výsledkov'!C211&COUNTIF('Evidencia výsledkov'!$C$4:C211,'Evidencia výsledkov'!C211)","v":"0"}]
[null,209,{"$f":"'Evidencia výsledkov'!C212&COUNTIF('Evidencia výsledkov'!$C$4:C212,'Evidencia výsledkov'!C212)","v":"0"}]
[null,210,{"$f":"'Evidencia výsledkov'!C213&COUNTIF('Evidencia výsledkov'!$C$4:C213,'Evidencia výsledkov'!C213)","v":"0"}]
[null,211,{"$f":"'Evidencia výsledkov'!C214&COUNTIF('Evidencia výsledkov'!$C$4:C214,'Evidencia výsledkov'!C214)","v":"0"}]
[null,212,{"$f":"'Evidencia výsledkov'!C215&COUNTIF('Evidencia výsledkov'!$C$4:C215,'Evidencia výsledkov'!C215)","v":"0"}]
[null,213,{"$f":"'Evidencia výsledkov'!C216&COUNTIF('Evidencia výsledkov'!$C$4:C216,'Evidencia výsledkov'!C216)","v":"0"}]
[null,214,{"$f":"'Evidencia výsledkov'!C217&COUNTIF('Evidencia výsledkov'!$C$4:C217,'Evidencia výsledkov'!C217)","v":"0"}]
[null,215,{"$f":"'Evidencia výsledkov'!C218&COUNTIF('Evidencia výsledkov'!$C$4:C218,'Evidencia výsledkov'!C218)","v":"0"}]
[null,216,{"$f":"'Evidencia výsledkov'!C219&COUNTIF('Evidencia výsledkov'!$C$4:C219,'Evidencia výsledkov'!C219)","v":"0"}]
[null,217,{"$f":"'Evidencia výsledkov'!C220&COUNTIF('Evidencia výsledkov'!$C$4:C220,'Evidencia výsledkov'!C220)","v":"0"}]
[null,218,{"$f":"'Evidencia výsledkov'!C221&COUNTIF('Evidencia výsledkov'!$C$4:C221,'Evidencia výsledkov'!C221)","v":"0"}]
[null,219,{"$f":"'Evidencia výsledkov'!C222&COUNTIF('Evidencia výsledkov'!$C$4:C222,'Evidencia výsledkov'!C222)","v":"0"}]
[null,220,{"$f":"'Evidencia výsledkov'!C223&COUNTIF('Evidencia výsledkov'!$C$4:C223,'Evidencia výsledkov'!C223)","v":"0"}]
[null,221,{"$f":"'Evidencia výsledkov'!C224&COUNTIF('Evidencia výsledkov'!$C$4:C224,'Evidencia výsledkov'!C224)","v":"0"}]
[null,222,{"$f":"'Evidencia výsledkov'!C225&COUNTIF('Evidencia výsledkov'!$C$4:C225,'Evidencia výsledkov'!C225)","v":"0"}]
[null,223,{"$f":"'Evidencia výsledkov'!C226&COUNTIF('Evidencia výsledkov'!$C$4:C226,'Evidencia výsledkov'!C226)","v":"0"}]
[null,224,{"$f":"'Evidencia výsledkov'!C227&COUNTIF('Evidencia výsledkov'!$C$4:C227,'Evidencia výsledkov'!C227)","v":"0"}]
[null,225,{"$f":"'Evidencia výsledkov'!C228&COUNTIF('Evidencia výsledkov'!$C$4:C228,'Evidencia výsledkov'!C228)","v":"0"}]
[null,226,{"$f":"'Evidencia výsledkov'!C229&COUNTIF('Evidencia výsledkov'!$C$4:C229,'Evidencia výsledkov'!C229)","v":"0"}]
[null,227,{"$f":"'Evidencia výsledkov'!C230&COUNTIF('Evidencia výsledkov'!$C$4:C230,'Evidencia výsledkov'!C230)","v":"0"}]
[null,228,{"$f":"'Evidencia výsledkov'!C231&COUNTIF('Evidencia výsledkov'!$C$4:C231,'Evidencia výsledkov'!C231)","v":"0"}]
[null,229,{"$f":"'Evidencia výsledkov'!C232&COUNTIF('Evidencia výsledkov'!$C$4:C232,'Evidencia výsledkov'!C232)","v":"0"}]
[null,230,{"$f":"'Evidencia výsledkov'!C233&COUNTIF('Evidencia výsledkov'!$C$4:C233,'Evidencia výsledkov'!C233)","v":"0"}]
[null,231,{"$f":"'Evidencia výsledkov'!C234&COUNTIF('Evidencia výsledkov'!$C$4:C234,'Evidencia výsledkov'!C234)","v":"0"}]
[null,232,{"$f":"'Evidencia výsledkov'!C235&COUNTIF('Evidencia výsledkov'!$C$4:C235,'Evidencia výsledkov'!C235)","v":"0"}]
[null,233,{"$f":"'Evidencia výsledkov'!C236&COUNTIF('Evidencia výsledkov'!$C$4:C236,'Evidencia výsledkov'!C236)","v":"0"}]
[null,234,{"$f":"'Evidencia výsledkov'!C237&COUNTIF('Evidencia výsledkov'!$C$4:C237,'Evidencia výsledkov'!C237)","v":"0"}]
[null,235,{"$f":"'Evidencia výsledkov'!C238&COUNTIF('Evidencia výsledkov'!$C$4:C238,'Evidencia výsledkov'!C238)","v":"0"}]
[null,236,{"$f":"'Evidencia výsledkov'!C239&COUNTIF('Evidencia výsledkov'!$C$4:C239,'Evidencia výsledkov'!C239)","v":"0"}]
[null,237,{"$f":"'Evidencia výsledkov'!C240&COUNTIF('Evidencia výsledkov'!$C$4:C240,'Evidencia výsledkov'!C240)","v":"0"}]
[null,238,{"$f":"'Evidencia výsledkov'!C241&COUNTIF('Evidencia výsledkov'!$C$4:C241,'Evidencia výsledkov'!C241)","v":"0"}]
[null,239,{"$f":"'Evidencia výsledkov'!C242&COUNTIF('Evidencia výsledkov'!$C$4:C242,'Evidencia výsledkov'!C242)","v":"0"}]
[null,240,{"$f":"'Evidencia výsledkov'!C243&COUNTIF('Evidencia výsledkov'!$C$4:C243,'Evidencia výsledkov'!C243)","v":"0"}]
[null,241,{"$f":"'Evidencia výsledkov'!C244&COUNTIF('Evidencia výsledkov'!$C$4:C244,'Evidencia výsledkov'!C244)","v":"0"}]
[null,242,{"$f":"'Evidencia výsledkov'!C245&COUNTIF('Evidencia výsledkov'!$C$4:C245,'Evidencia výsledkov'!C245)","v":"0"}]
[null,243,{"$f":"'Evidencia výsledkov'!C246&COUNTIF('Evidencia výsledkov'!$C$4:C246,'Evidencia výsledkov'!C246)","v":"0"}]
[null,244,{"$f":"'Evidencia výsledkov'!C247&COUNTIF('Evidencia výsledkov'!$C$4:C247,'Evidencia výsledkov'!C247)","v":"0"}]
[null,245,{"$f":"'Evidencia výsledkov'!C248&COUNTIF('Evidencia výsledkov'!$C$4:C248,'Evidencia výsledkov'!C248)","v":"0"}]
[null,246,{"$f":"'Evidencia výsledkov'!C249&COUNTIF('Evidencia výsledkov'!$C$4:C249,'Evidencia výsledkov'!C249)","v":"0"}]
[null,247,{"$f":"'Evidencia výsledkov'!C250&COUNTIF('Evidencia výsledkov'!$C$4:C250,'Evidencia výsledkov'!C250)","v":"0"}]
[null,248,{"$f":"'Evidencia výsledkov'!C251&COUNTIF('Evidencia výsledkov'!$C$4:C251,'Evidencia výsledkov'!C251)","v":"0"}]
[null,249,{"$f":"'Evidencia výsledkov'!C252&COUNTIF('Evidencia výsledkov'!$C$4:C252,'Evidencia výsledkov'!C252)","v":"0"}]
[null,250,{"$f":"'Evidencia výsledkov'!C253&COUNTIF('Evidencia výsledkov'!$C$4:C253,'Evidencia výsledkov'!C253)","v":"0"}]
[null,251,{"$f":"'Evidencia výsledkov'!C254&COUNTIF('Evidencia výsledkov'!$C$4:C254,'Evidencia výsledkov'!C254)","v":"0"}]
[null,252,{"$f":"'Evidencia výsledkov'!C255&COUNTIF('Evidencia výsledkov'!$C$4:C255,'Evidencia výsledkov'!C255)","v":"0"}]
[null,253,{"$f":"'Evidencia výsledkov'!C256&COUNTIF('Evidencia výsledkov'!$C$4:C256,'Evidencia výsledkov'!C256)","v":"0"}]
[null,254,{"$f":"'Evidencia výsledkov'!C257&COUNTIF('Evidencia výsledkov'!$C$4:C257,'Evidencia výsledkov'!C257)","v":"0"}]
[null,255,{"$f":"'Evidencia výsledkov'!C258&COUNTIF('Evidencia výsledkov'!$C$4:C258,'Evidencia výsledkov'!C258)","v":"0"}]
[null,256,{"$f":"'Evidencia výsledkov'!C259&COUNTIF('Evidencia výsledkov'!$C$4:C259,'Evidencia výsledkov'!C259)","v":"0"}]
[null,257,{"$f":"'Evidencia výsledkov'!C260&COUNTIF('Evidencia výsledkov'!$C$4:C260,'Evidencia výsledkov'!C260)","v":"0"}]
[null,258,{"$f":"'Evidencia výsledkov'!C261&COUNTIF('Evidencia výsledkov'!$C$4:C261,'Evidencia výsledkov'!C261)","v":"0"}]
[null,259,{"$f":"'Evidencia výsledkov'!C262&COUNTIF('Evidencia výsledkov'!$C$4:C262,'Evidencia výsledkov'!C262)","v":"0"}]
[null,260,{"$f":"'Evidencia výsledkov'!C263&COUNTIF('Evidencia výsledkov'!$C$4:C263,'Evidencia výsledkov'!C263)","v":"0"}]
[null,261,{"$f":"'Evidencia výsledkov'!C264&COUNTIF('Evidencia výsledkov'!$C$4:C264,'Evidencia výsledkov'!C264)","v":"0"}]
[null,262,{"$f":"'Evidencia výsledkov'!C265&COUNTIF('Evidencia výsledkov'!$C$4:C265,'Evidencia výsledkov'!C265)","v":"0"}]
[null,263,{"$f":"'Evidencia výsledkov'!C266&COUNTIF('Evidencia výsledkov'!$C$4:C266,'Evidencia výsledkov'!C266)","v":"0"}]
[null,264,{"$f":"'Evidencia výsledkov'!C267&COUNTIF('Evidencia výsledkov'!$C$4:C267,'Evidencia výsledkov'!C267)","v":"0"}]
[null,265,{"$f":"'Evidencia výsledkov'!C268&COUNTIF('Evidencia výsledkov'!$C$4:C268,'Evidencia výsledkov'!C268)","v":"0"}]
[null,266,{"$f":"'Evidencia výsledkov'!C269&COUNTIF('Evidencia výsledkov'!$C$4:C269,'Evidencia výsledkov'!C269)","v":"0"}]
[null,267,{"$f":"'Evidencia výsledkov'!C270&COUNTIF('Evidencia výsledkov'!$C$4:C270,'Evidencia výsledkov'!C270)","v":"0"}]
[null,268,{"$f":"'Evidencia výsledkov'!C271&COUNTIF('Evidencia výsledkov'!$C$4:C271,'Evidencia výsledkov'!C271)","v":"0"}]
[null,269,{"$f":"'Evidencia výsledkov'!C272&COUNTIF('Evidencia výsledkov'!$C$4:C272,'Evidencia výsledkov'!C272)","v":"0"}]
[null,270,{"$f":"'Evidencia výsledkov'!C273&COUNTIF('Evidencia výsledkov'!$C$4:C273,'Evidencia výsledkov'!C273)","v":"0"}]
[null,271,{"$f":"'Evidencia výsledkov'!C274&COUNTIF('Evidencia výsledkov'!$C$4:C274,'Evidencia výsledkov'!C274)","v":"0"}]
[null,272,{"$f":"'Evidencia výsledkov'!C275&COUNTIF('Evidencia výsledkov'!$C$4:C275,'Evidencia výsledkov'!C275)","v":"0"}]
[null,273,{"$f":"'Evidencia výsledkov'!C276&COUNTIF('Evidencia výsledkov'!$C$4:C276,'Evidencia výsledkov'!C276)","v":"0"}]
[null,274,{"$f":"'Evidencia výsledkov'!C277&COUNTIF('Evidencia výsledkov'!$C$4:C277,'Evidencia výsledkov'!C277)","v":"0"}]
[null,275,{"$f":"'Evidencia výsledkov'!C278&COUNTIF('Evidencia výsledkov'!$C$4:C278,'Evidencia výsledkov'!C278)","v":"0"}]
[null,276,{"$f":"'Evidencia výsledkov'!C279&COUNTIF('Evidencia výsledkov'!$C$4:C279,'Evidencia výsledkov'!C279)","v":"0"}]
[null,277,{"$f":"'Evidencia výsledkov'!C280&COUNTIF('Evidencia výsledkov'!$C$4:C280,'Evidencia výsledkov'!C280)","v":"0"}]
[null,278,{"$f":"'Evidencia výsledkov'!C281&COUNTIF('Evidencia výsledkov'!$C$4:C281,'Evidencia výsledkov'!C281)","v":"0"}]
[null,279,{"$f":"'Evidencia výsledkov'!C282&COUNTIF('Evidencia výsledkov'!$C$4:C282,'Evidencia výsledkov'!C282)","v":"0"}]
[null,280,{"$f":"'Evidencia výsledkov'!C283&COUNTIF('Evidencia výsledkov'!$C$4:C283,'Evidencia výsledkov'!C283)","v":"0"}]
[null,281,{"$f":"'Evidencia výsledkov'!C284&COUNTIF('Evidencia výsledkov'!$C$4:C284,'Evidencia výsledkov'!C284)","v":"0"}]
[null,282,{"$f":"'Evidencia výsledkov'!C285&COUNTIF('Evidencia výsledkov'!$C$4:C285,'Evidencia výsledkov'!C285)","v":"0"}]
[null,283,{"$f":"'Evidencia výsledkov'!C286&COUNTIF('Evidencia výsledkov'!$C$4:C286,'Evidencia výsledkov'!C286)","v":"0"}]
[null,284,{"$f":"'Evidencia výsledkov'!C287&COUNTIF('Evidencia výsledkov'!$C$4:C287,'Evidencia výsledkov'!C287)","v":"0"}]
[null,285,{"$f":"'Evidencia výsledkov'!C288&COUNTIF('Evidencia výsledkov'!$C$4:C288,'Evidencia výsledkov'!C288)","v":"0"}]
[null,286,{"$f":"'Evidencia výsledkov'!C289&COUNTIF('Evidencia výsledkov'!$C$4:C289,'Evidencia výsledkov'!C289)","v":"0"}]
[null,287,{"$f":"'Evidencia výsledkov'!C290&COUNTIF('Evidencia výsledkov'!$C$4:C290,'Evidencia výsledkov'!C290)","v":"0"}]
[null,288,{"$f":"'Evidencia výsledkov'!C291&COUNTIF('Evidencia výsledkov'!$C$4:C291,'Evidencia výsledkov'!C291)","v":"0"}]
[null,289,{"$f":"'Evidencia výsledkov'!C292&COUNTIF('Evidencia výsledkov'!$C$4:C292,'Evidencia výsledkov'!C292)","v":"0"}]
[null,290,{"$f":"'Evidencia výsledkov'!C293&COUNTIF('Evidencia výsledkov'!$C$4:C293,'Evidencia výsledkov'!C293)","v":"0"}]
[null,291,{"$f":"'Evidencia výsledkov'!C294&COUNTIF('Evidencia výsledkov'!$C$4:C294,'Evidencia výsledkov'!C294)","v":"0"}]
[null,292,{"$f":"'Evidencia výsledkov'!C295&COUNTIF('Evidencia výsledkov'!$C$4:C295,'Evidencia výsledkov'!C295)","v":"0"}]
[null,293,{"$f":"'Evidencia výsledkov'!C296&COUNTIF('Evidencia výsledkov'!$C$4:C296,'Evidencia výsledkov'!C296)","v":"0"}]
[null,294,{"$f":"'Evidencia výsledkov'!C297&COUNTIF('Evidencia výsledkov'!$C$4:C297,'Evidencia výsledkov'!C297)","v":"0"}]
[null,295,{"$f":"'Evidencia výsledkov'!C298&COUNTIF('Evidencia výsledkov'!$C$4:C298,'Evidencia výsledkov'!C298)","v":"0"}]
[null,296,{"$f":"'Evidencia výsledkov'!C299&COUNTIF('Evidencia výsledkov'!$C$4:C299,'Evidencia výsledkov'!C299)","v":"0"}]
[null,297,{"$f":"'Evidencia výsledkov'!C300&COUNTIF('Evidencia výsledkov'!$C$4:C300,'Evidencia výsledkov'!C300)","v":"0"}]
[null,298,{"$f":"'Evidencia výsledkov'!C301&COUNTIF('Evidencia výsledkov'!$C$4:C301,'Evidencia výsledkov'!C301)","v":"0"}]
[null,299,{"$f":"'Evidencia výsledkov'!C302&COUNTIF('Evidencia výsledkov'!$C$4:C302,'Evidencia výsledkov'!C302)","v":"0"}]
[null,300,{"$f":"'Evidencia výsledkov'!C303&COUNTIF('Evidencia výsledkov'!$C$4:C303,'Evidencia výsledkov'!C303)","v":"0"}]
[null,301,{"$f":"'Evidencia výsledkov'!C304&COUNTIF('Evidencia výsledkov'!$C$4:C304,'Evidencia výsledkov'!C304)","v":"0"}]
[null,302,{"$f":"'Evidencia výsledkov'!C305&COUNTIF('Evidencia výsledkov'!$C$4:C305,'Evidencia výsledkov'!C305)","v":"0"}]
[null,303,{"$f":"'Evidencia výsledkov'!C306&COUNTIF('Evidencia výsledkov'!$C$4:C306,'Evidencia výsledkov'!C306)","v":"0"}]
[null,304,{"$f":"'Evidencia výsledkov'!C307&COUNTIF('Evidencia výsledkov'!$C$4:C307,'Evidencia výsledkov'!C307)","v":"0"}]
[null,305,{"$f":"'Evidencia výsledkov'!C308&COUNTIF('Evidencia výsledkov'!$C$4:C308,'Evidencia výsledkov'!C308)","v":"0"}]
[null,306,{"$f":"'Evidencia výsledkov'!C309&COUNTIF('Evidencia výsledkov'!$C$4:C309,'Evidencia výsledkov'!C309)","v":"0"}]
[null,307,{"$f":"'Evidencia výsledkov'!C310&COUNTIF('Evidencia výsledkov'!$C$4:C310,'Evidencia výsledkov'!C310)","v":"0"}]
[null,308,{"$f":"'Evidencia výsledkov'!C311&COUNTIF('Evidencia výsledkov'!$C$4:C311,'Evidencia výsledkov'!C311)","v":"0"}]
[null,309,{"$f":"'Evidencia výsledkov'!C312&COUNTIF('Evidencia výsledkov'!$C$4:C312,'Evidencia výsledkov'!C312)","v":"0"}]
[null,310,{"$f":"'Evidencia výsledkov'!C313&COUNTIF('Evidencia výsledkov'!$C$4:C313,'Evidencia výsledkov'!C313)","v":"0"}]
[null,311,{"$f":"'Evidencia výsledkov'!C314&COUNTIF('Evidencia výsledkov'!$C$4:C314,'Evidencia výsledkov'!C314)","v":"0"}]
[null,312,{"$f":"'Evidencia výsledkov'!C315&COUNTIF('Evidencia výsledkov'!$C$4:C315,'Evidencia výsledkov'!C315)","v":"0"}]
[null,313,{"$f":"'Evidencia výsledkov'!C316&COUNTIF('Evidencia výsledkov'!$C$4:C316,'Evidencia výsledkov'!C316)","v":"0"}]
[null,314,{"$f":"'Evidencia výsledkov'!C317&COUNTIF('Evidencia výsledkov'!$C$4:C317,'Evidencia výsledkov'!C317)","v":"0"}]
[null,315,{"$f":"'Evidencia výsledkov'!C318&COUNTIF('Evidencia výsledkov'!$C$4:C318,'Evidencia výsledkov'!C318)","v":"0"}]
[null,316,{"$f":"'Evidencia výsledkov'!C319&COUNTIF('Evidencia výsledkov'!$C$4:C319,'Evidencia výsledkov'!C319)","v":"0"}]
[null,317,{"$f":"'Evidencia výsledkov'!C320&COUNTIF('Evidencia výsledkov'!$C$4:C320,'Evidencia výsledkov'!C320)","v":"0"}]
[null,318,{"$f":"'Evidencia výsledkov'!C321&COUNTIF('Evidencia výsledkov'!$C$4:C321,'Evidencia výsledkov'!C321)","v":"0"}]
[null,319,{"$f":"'Evidencia výsledkov'!C322&COUNTIF('Evidencia výsledkov'!$C$4:C322,'Evidencia výsledkov'!C322)","v":"0"}]
[null,320,{"$f":"'Evidencia výsledkov'!C323&COUNTIF('Evidencia výsledkov'!$C$4:C323,'Evidencia výsledkov'!C323)","v":"0"}]
[null,321,{"$f":"'Evidencia výsledkov'!C324&COUNTIF('Evidencia výsledkov'!$C$4:C324,'Evidencia výsledkov'!C324)","v":"0"}]
[null,322,{"$f":"'Evidencia výsledkov'!C325&COUNTIF('Evidencia výsledkov'!$C$4:C325,'Evidencia výsledkov'!C325)","v":"0"}]
[null,323,{"$f":"'Evidencia výsledkov'!C326&COUNTIF('Evidencia výsledkov'!$C$4:C326,'Evidencia výsledkov'!C326)","v":"0"}]
[null,324,{"$f":"'Evidencia výsledkov'!C327&COUNTIF('Evidencia výsledkov'!$C$4:C327,'Evidencia výsledkov'!C327)","v":"0"}]
[null,325,{"$f":"'Evidencia výsledkov'!C328&COUNTIF('Evidencia výsledkov'!$C$4:C328,'Evidencia výsledkov'!C328)","v":"0"}]
[null,326,{"$f":"'Evidencia výsledkov'!C329&COUNTIF('Evidencia výsledkov'!$C$4:C329,'Evidencia výsledkov'!C329)","v":"0"}]
[null,327,{"$f":"'Evidencia výsledkov'!C330&COUNTIF('Evidencia výsledkov'!$C$4:C330,'Evidencia výsledkov'!C330)","v":"0"}]
[null,328,{"$f":"'Evidencia výsledkov'!C331&COUNTIF('Evidencia výsledkov'!$C$4:C331,'Evidencia výsledkov'!C331)","v":"0"}]
[null,329,{"$f":"'Evidencia výsledkov'!C332&COUNTIF('Evidencia výsledkov'!$C$4:C332,'Evidencia výsledkov'!C332)","v":"0"}]
[null,330,{"$f":"'Evidencia výsledkov'!C333&COUNTIF('Evidencia výsledkov'!$C$4:C333,'Evidencia výsledkov'!C333)","v":"0"}]
[null,331,{"$f":"'Evidencia výsledkov'!C334&COUNTIF('Evidencia výsledkov'!$C$4:C334,'Evidencia výsledkov'!C334)","v":"0"}]
[null,332,{"$f":"'Evidencia výsledkov'!C335&COUNTIF('Evidencia výsledkov'!$C$4:C335,'Evidencia výsledkov'!C335)","v":"0"}]
[null,333,{"$f":"'Evidencia výsledkov'!C336&COUNTIF('Evidencia výsledkov'!$C$4:C336,'Evidencia výsledkov'!C336)","v":"0"}]
[null,334,{"$f":"'Evidencia výsledkov'!C337&COUNTIF('Evidencia výsledkov'!$C$4:C337,'Evidencia výsledkov'!C337)","v":"0"}]
[null,335,{"$f":"'Evidencia výsledkov'!C338&COUNTIF('Evidencia výsledkov'!$C$4:C338,'Evidencia výsledkov'!C338)","v":"0"}]
[null,336,{"$f":"'Evidencia výsledkov'!C339&COUNTIF('Evidencia výsledkov'!$C$4:C339,'Evidencia výsledkov'!C339)","v":"0"}]
[null,337,{"$f":"'Evidencia výsledkov'!C340&COUNTIF('Evidencia výsledkov'!$C$4:C340,'Evidencia výsledkov'!C340)","v":"0"}]
[null,338,{"$f":"'Evidencia výsledkov'!C341&COUNTIF('Evidencia výsledkov'!$C$4:C341,'Evidencia výsledkov'!C341)","v":"0"}]
[null,339,{"$f":"'Evidencia výsledkov'!C342&COUNTIF('Evidencia výsledkov'!$C$4:C342,'Evidencia výsledkov'!C342)","v":"0"}]
[null,340,{"$f":"'Evidencia výsledkov'!C343&COUNTIF('Evidencia výsledkov'!$C$4:C343,'Evidencia výsledkov'!C343)","v":"0"}]
[null,341,{"$f":"'Evidencia výsledkov'!C344&COUNTIF('Evidencia výsledkov'!$C$4:C344,'Evidencia výsledkov'!C344)","v":"0"}]
[null,342,{"$f":"'Evidencia výsledkov'!C345&COUNTIF('Evidencia výsledkov'!$C$4:C345,'Evidencia výsledkov'!C345)","v":"0"}]
[null,343,{"$f":"'Evidencia výsledkov'!C346&COUNTIF('Evidencia výsledkov'!$C$4:C346,'Evidencia výsledkov'!C346)","v":"0"}]
[null,344,{"$f":"'Evidencia výsledkov'!C347&COUNTIF('Evidencia výsledkov'!$C$4:C347,'Evidencia výsledkov'!C347)","v":"0"}]
[null,345,{"$f":"'Evidencia výsledkov'!C348&COUNTIF('Evidencia výsledkov'!$C$4:C348,'Evidencia výsledkov'!C348)","v":"0"}]
[null,346,{"$f":"'Evidencia výsledkov'!C349&COUNTIF('Evidencia výsledkov'!$C$4:C349,'Evidencia výsledkov'!C349)","v":"0"}]
[null,347,{"$f":"'Evidencia výsledkov'!C350&COUNTIF('Evidencia výsledkov'!$C$4:C350,'Evidencia výsledkov'!C350)","v":"0"}]
[null,348,{"$f":"'Evidencia výsledkov'!C351&COUNTIF('Evidencia výsledkov'!$C$4:C351,'Evidencia výsledkov'!C351)","v":"0"}]
[null,349,{"$f":"'Evidencia výsledkov'!C352&COUNTIF('Evidencia výsledkov'!$C$4:C352,'Evidencia výsledkov'!C352)","v":"0"}]
[null,350,{"$f":"'Evidencia výsledkov'!C353&COUNTIF('Evidencia výsledkov'!$C$4:C353,'Evidencia výsledkov'!C353)","v":"0"}]
[null,351,{"$f":"'Evidencia výsledkov'!C354&COUNTIF('Evidencia výsledkov'!$C$4:C354,'Evidencia výsledkov'!C354)","v":"0"}]
[null,352,{"$f":"'Evidencia výsledkov'!C355&COUNTIF('Evidencia výsledkov'!$C$4:C355,'Evidencia výsledkov'!C355)","v":"0"}]
[null,353,{"$f":"'Evidencia výsledkov'!C356&COUNTIF('Evidencia výsledkov'!$C$4:C356,'Evidencia výsledkov'!C356)","v":"0"}]
[null,354,{"$f":"'Evidencia výsledkov'!C357&COUNTIF('Evidencia výsledkov'!$C$4:C357,'Evidencia výsledkov'!C357)","v":"0"}]
[null,355,{"$f":"'Evidencia výsledkov'!C358&COUNTIF('Evidencia výsledkov'!$C$4:C358,'Evidencia výsledkov'!C358)","v":"0"}]
[null,356,{"$f":"'Evidencia výsledkov'!C359&COUNTIF('Evidencia výsledkov'!$C$4:C359,'Evidencia výsledkov'!C359)","v":"0"}]
[null,357,{"$f":"'Evidencia výsledkov'!C360&COUNTIF('Evidencia výsledkov'!$C$4:C360,'Evidencia výsledkov'!C360)","v":"0"}]
[null,358,{"$f":"'Evidencia výsledkov'!C361&COUNTIF('Evidencia výsledkov'!$C$4:C361,'Evidencia výsledkov'!C361)","v":"0"}]
[null,359,{"$f":"'Evidencia výsledkov'!C362&COUNTIF('Evidencia výsledkov'!$C$4:C362,'Evidencia výsledkov'!C362)","v":"0"}]
[null,360,{"$f":"'Evidencia výsledkov'!C363&COUNTIF('Evidencia výsledkov'!$C$4:C363,'Evidencia výsledkov'!C363)","v":"0"}]
[null,361,{"$f":"'Evidencia výsledkov'!C364&COUNTIF('Evidencia výsledkov'!$C$4:C364,'Evidencia výsledkov'!C364)","v":"0"}]
[null,362,{"$f":"'Evidencia výsledkov'!C365&COUNTIF('Evidencia výsledkov'!$C$4:C365,'Evidencia výsledkov'!C365)","v":"0"}]
[null,363,{"$f":"'Evidencia výsledkov'!C366&COUNTIF('Evidencia výsledkov'!$C$4:C366,'Evidencia výsledkov'!C366)","v":"0"}]
[null,364,{"$f":"'Evidencia výsledkov'!C367&COUNTIF('Evidencia výsledkov'!$C$4:C367,'Evidencia výsledkov'!C367)","v":"0"}]
[null,365,{"$f":"'Evidencia výsledkov'!C368&COUNTIF('Evidencia výsledkov'!$C$4:C368,'Evidencia výsledkov'!C368)","v":"0"}]
[null,366,{"$f":"'Evidencia výsledkov'!C369&COUNTIF('Evidencia výsledkov'!$C$4:C369,'Evidencia výsledkov'!C369)","v":"0"}]
[null,367,{"$f":"'Evidencia výsledkov'!C370&COUNTIF('Evidencia výsledkov'!$C$4:C370,'Evidencia výsledkov'!C370)","v":"0"}]
[null,368,{"$f":"'Evidencia výsledkov'!C371&COUNTIF('Evidencia výsledkov'!$C$4:C371,'Evidencia výsledkov'!C371)","v":"0"}]
[null,369,{"$f":"'Evidencia výsledkov'!C372&COUNTIF('Evidencia výsledkov'!$C$4:C372,'Evidencia výsledkov'!C372)","v":"0"}]
[null,370,{"$f":"'Evidencia výsledkov'!C373&COUNTIF('Evidencia výsledkov'!$C$4:C373,'Evidencia výsledkov'!C373)","v":"0"}]
[null,371,{"$f":"'Evidencia výsledkov'!C374&COUNTIF('Evidencia výsledkov'!$C$4:C374,'Evidencia výsledkov'!C374)","v":"0"}]
[null,372,{"$f":"'Evidencia výsledkov'!C375&COUNTIF('Evidencia výsledkov'!$C$4:C375,'Evidencia výsledkov'!C375)","v":"0"}]
[null,373,{"$f":"'Evidencia výsledkov'!C376&COUNTIF('Evidencia výsledkov'!$C$4:C376,'Evidencia výsledkov'!C376)","v":"0"}]
[null,374,{"$f":"'Evidencia výsledkov'!C377&COUNTIF('Evidencia výsledkov'!$C$4:C377,'Evidencia výsledkov'!C377)","v":"0"}]
[null,375,{"$f":"'Evidencia výsledkov'!C378&COUNTIF('Evidencia výsledkov'!$C$4:C378,'Evidencia výsledkov'!C378)","v":"0"}]
[null,376,{"$f":"'Evidencia výsledkov'!C379&COUNTIF('Evidencia výsledkov'!$C$4:C379,'Evidencia výsledkov'!C379)","v":"0"}]
[null,377,{"$f":"'Evidencia výsledkov'!C380&COUNTIF('Evidencia výsledkov'!$C$4:C380,'Evidencia výsledkov'!C380)","v":"0"}]
[null,378,{"$f":"'Evidencia výsledkov'!C381&COUNTIF('Evidencia výsledkov'!$C$4:C381,'Evidencia výsledkov'!C381)","v":"0"}]
[null,379,{"$f":"'Evidencia výsledkov'!C382&COUNTIF('Evidencia výsledkov'!$C$4:C382,'Evidencia výsledkov'!C382)","v":"0"}]
[null,380,{"$f":"'Evidencia výsledkov'!C383&COUNTIF('Evidencia výsledkov'!$C$4:C383,'Evidencia výsledkov'!C383)","v":"0"}]
[null,381,{"$f":"'Evidencia výsledkov'!C384&COUNTIF('Evidencia výsledkov'!$C$4:C384,'Evidencia výsledkov'!C384)","v":"0"}]
[null,382,{"$f":"'Evidencia výsledkov'!C385&COUNTIF('Evidencia výsledkov'!$C$4:C385,'Evidencia výsledkov'!C385)","v":"0"}]
[null,383,{"$f":"'Evidencia výsledkov'!C386&COUNTIF('Evidencia výsledkov'!$C$4:C386,'Evidencia výsledkov'!C386)","v":"0"}]
[null,384,{"$f":"'Evidencia výsledkov'!C387&COUNTIF('Evidencia výsledkov'!$C$4:C387,'Evidencia výsledkov'!C387)","v":"0"}]
[null,385,{"$f":"'Evidencia výsledkov'!C388&COUNTIF('Evidencia výsledkov'!$C$4:C388,'Evidencia výsledkov'!C388)","v":"0"}]
[null,386,{"$f":"'Evidencia výsledkov'!C389&COUNTIF('Evidencia výsledkov'!$C$4:C389,'Evidencia výsledkov'!C389)","v":"0"}]
[null,387,{"$f":"'Evidencia výsledkov'!C390&COUNTIF('Evidencia výsledkov'!$C$4:C390,'Evidencia výsledkov'!C390)","v":"0"}]
[null,388,{"$f":"'Evidencia výsledkov'!C391&COUNTIF('Evidencia výsledkov'!$C$4:C391,'Evidencia výsledkov'!C391)","v":"0"}]
[null,389,{"$f":"'Evidencia výsledkov'!C392&COUNTIF('Evidencia výsledkov'!$C$4:C392,'Evidencia výsledkov'!C392)","v":"0"}]
[null,390,{"$f":"'Evidencia výsledkov'!C393&COUNTIF('Evidencia výsledkov'!$C$4:C393,'Evidencia výsledkov'!C393)","v":"0"}]
[null,391,{"$f":"'Evidencia výsledkov'!C394&COUNTIF('Evidencia výsledkov'!$C$4:C394,'Evidencia výsledkov'!C394)","v":"0"}]
[null,392,{"$f":"'Evidencia výsledkov'!C395&COUNTIF('Evidencia výsledkov'!$C$4:C395,'Evidencia výsledkov'!C395)","v":"0"}]
[null,393,{"$f":"'Evidencia výsledkov'!C396&COUNTIF('Evidencia výsledkov'!$C$4:C396,'Evidencia výsledkov'!C396)","v":"0"}]
[null,394,{"$f":"'Evidencia výsledkov'!C397&COUNTIF('Evidencia výsledkov'!$C$4:C397,'Evidencia výsledkov'!C397)","v":"0"}]
[null,395,{"$f":"'Evidencia výsledkov'!C398&COUNTIF('Evidencia výsledkov'!$C$4:C398,'Evidencia výsledkov'!C398)","v":"0"}]
[null,396,{"$f":"'Evidencia výsledkov'!C399&COUNTIF('Evidencia výsledkov'!$C$4:C399,'Evidencia výsledkov'!C399)","v":"0"}]
[null,397,{"$f":"'Evidencia výsledkov'!C400&COUNTIF('Evidencia výsledkov'!$C$4:C400,'Evidencia výsledkov'!C400)","v":"0"}]
[null,398,{"$f":"'Evidencia výsledkov'!C401&COUNTIF('Evidencia výsledkov'!$C$4:C401,'Evidencia výsledkov'!C401)","v":"0"}]
[null,399,{"$f":"'Evidencia výsledkov'!C402&COUNTIF('Evidencia výsledkov'!$C$4:C402,'Evidencia výsledkov'!C402)","v":"0"}]
[null,400,{"$f":"'Evidencia výsledkov'!C403&COUNTIF('Evidencia výsledkov'!$C$4:C403,'Evidencia výsledkov'!C403)","v":"0"}]
[null,401,{"$f":"'Evidencia výsledkov'!C404&COUNTIF('Evidencia výsledkov'!$C$4:C404,'Evidencia výsledkov'!C404)","v":"0"}]
[null,402,{"$f":"'Evidencia výsledkov'!C405&COUNTIF('Evidencia výsledkov'!$C$4:C405,'Evidencia výsledkov'!C405)","v":"0"}]
[null,403,{"$f":"'Evidencia výsledkov'!C406&COUNTIF('Evidencia výsledkov'!$C$4:C406,'Evidencia výsledkov'!C406)","v":"0"}]
[null,404,{"$f":"'Evidencia výsledkov'!C407&COUNTIF('Evidencia výsledkov'!$C$4:C407,'Evidencia výsledkov'!C407)","v":"0"}]
[null,405,{"$f":"'Evidencia výsledkov'!C408&COUNTIF('Evidencia výsledkov'!$C$4:C408,'Evidencia výsledkov'!C408)","v":"0"}]
[null,406,{"$f":"'Evidencia výsledkov'!C409&COUNTIF('Evidencia výsledkov'!$C$4:C409,'Evidencia výsledkov'!C409)","v":"0"}]
[null,407,{"$f":"'Evidencia výsledkov'!C410&COUNTIF('Evidencia výsledkov'!$C$4:C410,'Evidencia výsledkov'!C410)","v":"0"}]
[null,408,{"$f":"'Evidencia výsledkov'!C411&COUNTIF('Evidencia výsledkov'!$C$4:C411,'Evidencia výsledkov'!C411)","v":"0"}]
[null,409,{"$f":"'Evidencia výsledkov'!C412&COUNTIF('Evidencia výsledkov'!$C$4:C412,'Evidencia výsledkov'!C412)","v":"0"}]
[null,410,{"$f":"'Evidencia výsledkov'!C413&COUNTIF('Evidencia výsledkov'!$C$4:C413,'Evidencia výsledkov'!C413)","v":"0"}]
[null,411,{"$f":"'Evidencia výsledkov'!C414&COUNTIF('Evidencia výsledkov'!$C$4:C414,'Evidencia výsledkov'!C414)","v":"0"}]
[null,412,{"$f":"'Evidencia výsledkov'!C415&COUNTIF('Evidencia výsledkov'!$C$4:C415,'Evidencia výsledkov'!C415)","v":"0"}]
[null,413,{"$f":"'Evidencia výsledkov'!C416&COUNTIF('Evidencia výsledkov'!$C$4:C416,'Evidencia výsledkov'!C416)","v":"0"}]
[null,414,{"$f":"'Evidencia výsledkov'!C417&COUNTIF('Evidencia výsledkov'!$C$4:C417,'Evidencia výsledkov'!C417)","v":"0"}]
[null,415,{"$f":"'Evidencia výsledkov'!C418&COUNTIF('Evidencia výsledkov'!$C$4:C418,'Evidencia výsledkov'!C418)","v":"0"}]
[null,416,{"$f":"'Evidencia výsledkov'!C419&COUNTIF('Evidencia výsledkov'!$C$4:C419,'Evidencia výsledkov'!C419)","v":"0"}]
[null,417,{"$f":"'Evidencia výsledkov'!C420&COUNTIF('Evidencia výsledkov'!$C$4:C420,'Evidencia výsledkov'!C420)","v":"0"}]
[null,418,{"$f":"'Evidencia výsledkov'!C421&COUNTIF('Evidencia výsledkov'!$C$4:C421,'Evidencia výsledkov'!C421)","v":"0"}]
[null,419,{"$f":"'Evidencia výsledkov'!C422&COUNTIF('Evidencia výsledkov'!$C$4:C422,'Evidencia výsledkov'!C422)","v":"0"}]
[null,420,{"$f":"'Evidencia výsledkov'!C423&COUNTIF('Evidencia výsledkov'!$C$4:C423,'Evidencia výsledkov'!C423)","v":"0"}]
[null,421,{"$f":"'Evidencia výsledkov'!C424&COUNTIF('Evidencia výsledkov'!$C$4:C424,'Evidencia výsledkov'!C424)","v":"0"}]
[null,422,{"$f":"'Evidencia výsledkov'!C425&COUNTIF('Evidencia výsledkov'!$C$4:C425,'Evidencia výsledkov'!C425)","v":"0"}]
[null,423,{"$f":"'Evidencia výsledkov'!C426&COUNTIF('Evidencia výsledkov'!$C$4:C426,'Evidencia výsledkov'!C426)","v":"0"}]
[null,424,{"$f":"'Evidencia výsledkov'!C427&COUNTIF('Evidencia výsledkov'!$C$4:C427,'Evidencia výsledkov'!C427)","v":"0"}]
[null,425,{"$f":"'Evidencia výsledkov'!C428&COUNTIF('Evidencia výsledkov'!$C$4:C428,'Evidencia výsledkov'!C428)","v":"0"}]
[null,426,{"$f":"'Evidencia výsledkov'!C429&COUNTIF('Evidencia výsledkov'!$C$4:C429,'Evidencia výsledkov'!C429)","v":"0"}]
[null,427,{"$f":"'Evidencia výsledkov'!C430&COUNTIF('Evidencia výsledkov'!$C$4:C430,'Evidencia výsledkov'!C430)","v":"0"}]
[null,428,{"$f":"'Evidencia výsledkov'!C431&COUNTIF('Evidencia výsledkov'!$C$4:C431,'Evidencia výsledkov'!C431)","v":"0"}]
[null,429,{"$f":"'Evidencia výsledkov'!C432&COUNTIF('Evidencia výsledkov'!$C$4:C432,'Evidencia výsledkov'!C432)","v":"0"}]
[null,430,{"$f":"'Evidencia výsledkov'!C433&COUNTIF('Evidencia výsledkov'!$C$4:C433,'Evidencia výsledkov'!C433)","v":"0"}]
[null,431,{"$f":"'Evidencia výsledkov'!C434&COUNTIF('Evidencia výsledkov'!$C$4:C434,'Evidencia výsledkov'!C434)","v":"0"}]
[null,432,{"$f":"'Evidencia výsledkov'!C435&COUNTIF('Evidencia výsledkov'!$C$4:C435,'Evidencia výsledkov'!C435)","v":"0"}]
[null,433,{"$f":"'Evidencia výsledkov'!C436&COUNTIF('Evidencia výsledkov'!$C$4:C436,'Evidencia výsledkov'!C436)","v":"0"}]
[null,434,{"$f":"'Evidencia výsledkov'!C437&COUNTIF('Evidencia výsledkov'!$C$4:C437,'Evidencia výsledkov'!C437)","v":"0"}]
[null,435,{"$f":"'Evidencia výsledkov'!C438&COUNTIF('Evidencia výsledkov'!$C$4:C438,'Evidencia výsledkov'!C438)","v":"0"}]
[null,436,{"$f":"'Evidencia výsledkov'!C439&COUNTIF('Evidencia výsledkov'!$C$4:C439,'Evidencia výsledkov'!C439)","v":"0"}]
[null,437,{"$f":"'Evidencia výsledkov'!C440&COUNTIF('Evidencia výsledkov'!$C$4:C440,'Evidencia výsledkov'!C440)","v":"0"}]
[null,438,{"$f":"'Evidencia výsledkov'!C441&COUNTIF('Evidencia výsledkov'!$C$4:C441,'Evidencia výsledkov'!C441)","v":"0"}]
[null,439,{"$f":"'Evidencia výsledkov'!C442&COUNTIF('Evidencia výsledkov'!$C$4:C442,'Evidencia výsledkov'!C442)","v":"0"}]
[null,440,{"$f":"'Evidencia výsledkov'!C443&COUNTIF('Evidencia výsledkov'!$C$4:C443,'Evidencia výsledkov'!C443)","v":"0"}]
[null,441,{"$f":"'Evidencia výsledkov'!C444&COUNTIF('Evidencia výsledkov'!$C$4:C444,'Evidencia výsledkov'!C444)","v":"0"}]
[null,442,{"$f":"'Evidencia výsledkov'!C445&COUNTIF('Evidencia výsledkov'!$C$4:C445,'Evidencia výsledkov'!C445)","v":"0"}]
[null,443,{"$f":"'Evidencia výsledkov'!C446&COUNTIF('Evidencia výsledkov'!$C$4:C446,'Evidencia výsledkov'!C446)","v":"0"}]
[null,444,{"$f":"'Evidencia výsledkov'!C447&COUNTIF('Evidencia výsledkov'!$C$4:C447,'Evidencia výsledkov'!C447)","v":"0"}]
[null,445,{"$f":"'Evidencia výsledkov'!C448&COUNTIF('Evidencia výsledkov'!$C$4:C448,'Evidencia výsledkov'!C448)","v":"0"}]
[null,446,{"$f":"'Evidencia výsledkov'!C449&COUNTIF('Evidencia výsledkov'!$C$4:C449,'Evidencia výsledkov'!C449)","v":"0"}]
[null,447,{"$f":"'Evidencia výsledkov'!C450&COUNTIF('Evidencia výsledkov'!$C$4:C450,'Evidencia výsledkov'!C450)","v":"0"}]
[null,448,{"$f":"'Evidencia výsledkov'!C451&COUNTIF('Evidencia výsledkov'!$C$4:C451,'Evidencia výsledkov'!C451)","v":"0"}]
[null,449,{"$f":"'Evidencia výsledkov'!C452&COUNTIF('Evidencia výsledkov'!$C$4:C452,'Evidencia výsledkov'!C452)","v":"0"}]
[null,450,{"$f":"'Evidencia výsledkov'!C453&COUNTIF('Evidencia výsledkov'!$C$4:C453,'Evidencia výsledkov'!C453)","v":"0"}]
[null,451,{"$f":"'Evidencia výsledkov'!C454&COUNTIF('Evidencia výsledkov'!$C$4:C454,'Evidencia výsledkov'!C454)","v":"0"}]
[null,452,{"$f":"'Evidencia výsledkov'!C455&COUNTIF('Evidencia výsledkov'!$C$4:C455,'Evidencia výsledkov'!C455)","v":"0"}]
[null,453,{"$f":"'Evidencia výsledkov'!C456&COUNTIF('Evidencia výsledkov'!$C$4:C456,'Evidencia výsledkov'!C456)","v":"0"}]
[null,454,{"$f":"'Evidencia výsledkov'!C457&COUNTIF('Evidencia výsledkov'!$C$4:C457,'Evidencia výsledkov'!C457)","v":"0"}]
[null,455,{"$f":"'Evidencia výsledkov'!C458&COUNTIF('Evidencia výsledkov'!$C$4:C458,'Evidencia výsledkov'!C458)","v":"0"}]
[null,456,{"$f":"'Evidencia výsledkov'!C459&COUNTIF('Evidencia výsledkov'!$C$4:C459,'Evidencia výsledkov'!C459)","v":"0"}]
[null,457,{"$f":"'Evidencia výsledkov'!C460&COUNTIF('Evidencia výsledkov'!$C$4:C460,'Evidencia výsledkov'!C460)","v":"0"}]
[null,458,{"$f":"'Evidencia výsledkov'!C461&COUNTIF('Evidencia výsledkov'!$C$4:C461,'Evidencia výsledkov'!C461)","v":"0"}]
[null,459,{"$f":"'Evidencia výsledkov'!C462&COUNTIF('Evidencia výsledkov'!$C$4:C462,'Evidencia výsledkov'!C462)","v":"0"}]
[null,460,{"$f":"'Evidencia výsledkov'!C463&COUNTIF('Evidencia výsledkov'!$C$4:C463,'Evidencia výsledkov'!C463)","v":"0"}]
[null,461,{"$f":"'Evidencia výsledkov'!C464&COUNTIF('Evidencia výsledkov'!$C$4:C464,'Evidencia výsledkov'!C464)","v":"0"}]
[null,462,{"$f":"'Evidencia výsledkov'!C465&COUNTIF('Evidencia výsledkov'!$C$4:C465,'Evidencia výsledkov'!C465)","v":"0"}]
[null,463,{"$f":"'Evidencia výsledkov'!C466&COUNTIF('Evidencia výsledkov'!$C$4:C466,'Evidencia výsledkov'!C466)","v":"0"}]
[null,464,{"$f":"'Evidencia výsledkov'!C467&COUNTIF('Evidencia výsledkov'!$C$4:C467,'Evidencia výsledkov'!C467)","v":"0"}]
[null,465,{"$f":"'Evidencia výsledkov'!C468&COUNTIF('Evidencia výsledkov'!$C$4:C468,'Evidencia výsledkov'!C468)","v":"0"}]
[null,466,{"$f":"'Evidencia výsledkov'!C469&COUNTIF('Evidencia výsledkov'!$C$4:C469,'Evidencia výsledkov'!C469)","v":"0"}]
[null,467,{"$f":"'Evidencia výsledkov'!C470&COUNTIF('Evidencia výsledkov'!$C$4:C470,'Evidencia výsledkov'!C470)","v":"0"}]
[null,468,{"$f":"'Evidencia výsledkov'!C471&COUNTIF('Evidencia výsledkov'!$C$4:C471,'Evidencia výsledkov'!C471)","v":"0"}]
[null,469,{"$f":"'Evidencia výsledkov'!C472&COUNTIF('Evidencia výsledkov'!$C$4:C472,'Evidencia výsledkov'!C472)","v":"0"}]
[null,470,{"$f":"'Evidencia výsledkov'!C473&COUNTIF('Evidencia výsledkov'!$C$4:C473,'Evidencia výsledkov'!C473)","v":"0"}]
[null,471,{"$f":"'Evidencia výsledkov'!C474&COUNTIF('Evidencia výsledkov'!$C$4:C474,'Evidencia výsledkov'!C474)","v":"0"}]
[null,472,{"$f":"'Evidencia výsledkov'!C475&COUNTIF('Evidencia výsledkov'!$C$4:C475,'Evidencia výsledkov'!C475)","v":"0"}]
[null,473,{"$f":"'Evidencia výsledkov'!C476&COUNTIF('Evidencia výsledkov'!$C$4:C476,'Evidencia výsledkov'!C476)","v":"0"}]
[null,474,{"$f":"'Evidencia výsledkov'!C477&COUNTIF('Evidencia výsledkov'!$C$4:C477,'Evidencia výsledkov'!C477)","v":"0"}]
[null,475,{"$f":"'Evidencia výsledkov'!C478&COUNTIF('Evidencia výsledkov'!$C$4:C478,'Evidencia výsledkov'!C478)","v":"0"}]
[null,476,{"$f":"'Evidencia výsledkov'!C479&COUNTIF('Evidencia výsledkov'!$C$4:C479,'Evidencia výsledkov'!C479)","v":"0"}]
[null,477,{"$f":"'Evidencia výsledkov'!C480&COUNTIF('Evidencia výsledkov'!$C$4:C480,'Evidencia výsledkov'!C480)","v":"0"}]
[null,478,{"$f":"'Evidencia výsledkov'!C481&COUNTIF('Evidencia výsledkov'!$C$4:C481,'Evidencia výsledkov'!C481)","v":"0"}]
[null,479,{"$f":"'Evidencia výsledkov'!C482&COUNTIF('Evidencia výsledkov'!$C$4:C482,'Evidencia výsledkov'!C482)","v":"0"}]
[null,480,{"$f":"'Evidencia výsledkov'!C483&COUNTIF('Evidencia výsledkov'!$C$4:C483,'Evidencia výsledkov'!C483)","v":"0"}]
[null,481,{"$f":"'Evidencia výsledkov'!C484&COUNTIF('Evidencia výsledkov'!$C$4:C484,'Evidencia výsledkov'!C484)","v":"0"}]
[null,482,{"$f":"'Evidencia výsledkov'!C485&COUNTIF('Evidencia výsledkov'!$C$4:C485,'Evidencia výsledkov'!C485)","v":"0"}]
[null,483,{"$f":"'Evidencia výsledkov'!C486&COUNTIF('Evidencia výsledkov'!$C$4:C486,'Evidencia výsledkov'!C486)","v":"0"}]
[null,484,{"$f":"'Evidencia výsledkov'!C487&COUNTIF('Evidencia výsledkov'!$C$4:C487,'Evidencia výsledkov'!C487)","v":"0"}]
[null,485,{"$f":"'Evidencia výsledkov'!C488&COUNTIF('Evidencia výsledkov'!$C$4:C488,'Evidencia výsledkov'!C488)","v":"0"}]
[null,486,{"$f":"'Evidencia výsledkov'!C489&COUNTIF('Evidencia výsledkov'!$C$4:C489,'Evidencia výsledkov'!C489)","v":"0"}]
[null,487,{"$f":"'Evidencia výsledkov'!C490&COUNTIF('Evidencia výsledkov'!$C$4:C490,'Evidencia výsledkov'!C490)","v":"0"}]
[null,488,{"$f":"'Evidencia výsledkov'!C491&COUNTIF('Evidencia výsledkov'!$C$4:C491,'Evidencia výsledkov'!C491)","v":"0"}]
[null,489,{"$f":"'Evidencia výsledkov'!C492&COUNTIF('Evidencia výsledkov'!$C$4:C492,'Evidencia výsledkov'!C492)","v":"0"}]
[null,490,{"$f":"'Evidencia výsledkov'!C493&COUNTIF('Evidencia výsledkov'!$C$4:C493,'Evidencia výsledkov'!C493)","v":"0"}]
[null,491,{"$f":"'Evidencia výsledkov'!C494&COUNTIF('Evidencia výsledkov'!$C$4:C494,'Evidencia výsledkov'!C494)","v":"0"}]
[null,492,{"$f":"'Evidencia výsledkov'!C495&COUNTIF('Evidencia výsledkov'!$C$4:C495,'Evidencia výsledkov'!C495)","v":"0"}]
[null,493,{"$f":"'Evidencia výsledkov'!C496&COUNTIF('Evidencia výsledkov'!$C$4:C496,'Evidencia výsledkov'!C496)","v":"0"}]
[null,494,{"$f":"'Evidencia výsledkov'!C497&COUNTIF('Evidencia výsledkov'!$C$4:C497,'Evidencia výsledkov'!C497)","v":"0"}]
[null,495,{"$f":"'Evidencia výsledkov'!C498&COUNTIF('Evidencia výsledkov'!$C$4:C498,'Evidencia výsledkov'!C498)","v":"0"}]
[null,496,{"$f":"'Evidencia výsledkov'!C499&COUNTIF('Evidencia výsledkov'!$C$4:C499,'Evidencia výsledkov'!C499)","v":"0"}]
[null,497,{"$f":"'Evidencia výsledkov'!C500&COUNTIF('Evidencia výsledkov'!$C$4:C500,'Evidencia výsledkov'!C500)","v":"0"}]
[null,498,{"$f":"'Evidencia výsledkov'!C501&COUNTIF('Evidencia výsledkov'!$C$4:C501,'Evidencia výsledkov'!C501)","v":"0"}]
[null,499,{"$f":"'Evidencia výsledkov'!C502&COUNTIF('Evidencia výsledkov'!$C$4:C502,'Evidencia výsledkov'!C502)","v":"0"}]
[null,500,{"$f":"'Evidencia výsledkov'!C503&COUNTIF('Evidencia výsledkov'!$C$4:C503,'Evidencia výsledkov'!C503)","v":"0"}]
[null,501,{"$f":"'Evidencia výsledkov'!C504&COUNTIF('Evidencia výsledkov'!$C$4:C504,'Evidencia výsledkov'!C504)","v":"0"}]
[null,502,{"$f":"'Evidencia výsledkov'!C505&COUNTIF('Evidencia výsledkov'!$C$4:C505,'Evidencia výsledkov'!C505)","v":"0"}]
[null,503,{"$f":"'Evidencia výsledkov'!C506&COUNTIF('Evidencia výsledkov'!$C$4:C506,'Evidencia výsledkov'!C506)","v":"0"}]
[null,504,{"$f":"'Evidencia výsledkov'!C507&COUNTIF('Evidencia výsledkov'!$C$4:C507,'Evidencia výsledkov'!C507)","v":"0"}]
[null,505,{"$f":"'Evidencia výsledkov'!C508&COUNTIF('Evidencia výsledkov'!$C$4:C508,'Evidencia výsledkov'!C508)","v":"0"}]
[null,506,{"$f":"'Evidencia výsledkov'!C509&COUNTIF('Evidencia výsledkov'!$C$4:C509,'Evidencia výsledkov'!C509)","v":"0"}]
[null,507,{"$f":"'Evidencia výsledkov'!C510&COUNTIF('Evidencia výsledkov'!$C$4:C510,'Evidencia výsledkov'!C510)","v":"0"}]
[null,508,{"$f":"'Evidencia výsledkov'!C511&COUNTIF('Evidencia výsledkov'!$C$4:C511,'Evidencia výsledkov'!C511)","v":"0"}]
[null,509,{"$f":"'Evidencia výsledkov'!C512&COUNTIF('Evidencia výsledkov'!$C$4:C512,'Evidencia výsledkov'!C512)","v":"0"}]
[null,510,{"$f":"'Evidencia výsledkov'!C513&COUNTIF('Evidencia výsledkov'!$C$4:C513,'Evidencia výsledkov'!C513)","v":"0"}]
[null,511,{"$f":"'Evidencia výsledkov'!C514&COUNTIF('Evidencia výsledkov'!$C$4:C514,'Evidencia výsledkov'!C514)","v":"0"}]
[null,512,{"$f":"'Evidencia výsledkov'!C515&COUNTIF('Evidencia výsledkov'!$C$4:C515,'Evidencia výsledkov'!C515)","v":"0"}]
[null,513,{"$f":"'Evidencia výsledkov'!C516&COUNTIF('Evidencia výsledkov'!$C$4:C516,'Evidencia výsledkov'!C516)","v":"0"}]
[null,514,{"$f":"'Evidencia výsledkov'!C517&COUNTIF('Evidencia výsledkov'!$C$4:C517,'Evidencia výsledkov'!C517)","v":"0"}]
[null,515,{"$f":"'Evidencia výsledkov'!C518&COUNTIF('Evidencia výsledkov'!$C$4:C518,'Evidencia výsledkov'!C518)","v":"0"}]
[null,516,{"$f":"'Evidencia výsledkov'!C519&COUNTIF('Evidencia výsledkov'!$C$4:C519,'Evidencia výsledkov'!C519)","v":"0"}]
[null,517,{"$f":"'Evidencia výsledkov'!C520&COUNTIF('Evidencia výsledkov'!$C$4:C520,'Evidencia výsledkov'!C520)","v":"0"}]
[null,518,{"$f":"'Evidencia výsledkov'!C521&COUNTIF('Evidencia výsledkov'!$C$4:C521,'Evidencia výsledkov'!C521)","v":"0"}]
[null,519,{"$f":"'Evidencia výsledkov'!C522&COUNTIF('Evidencia výsledkov'!$C$4:C522,'Evidencia výsledkov'!C522)","v":"0"}]
[null,520,{"$f":"'Evidencia výsledkov'!C523&COUNTIF('Evidencia výsledkov'!$C$4:C523,'Evidencia výsledkov'!C523)","v":"0"}]
[null,521,{"$f":"'Evidencia výsledkov'!C524&COUNTIF('Evidencia výsledkov'!$C$4:C524,'Evidencia výsledkov'!C524)","v":"0"}]
[null,522,{"$f":"'Evidencia výsledkov'!C525&COUNTIF('Evidencia výsledkov'!$C$4:C525,'Evidencia výsledkov'!C525)","v":"0"}]
[null,523,{"$f":"'Evidencia výsledkov'!C526&COUNTIF('Evidencia výsledkov'!$C$4:C526,'Evidencia výsledkov'!C526)","v":"0"}]
[null,524,{"$f":"'Evidencia výsledkov'!C527&COUNTIF('Evidencia výsledkov'!$C$4:C527,'Evidencia výsledkov'!C527)","v":"0"}]
[null,525,{"$f":"'Evidencia výsledkov'!C528&COUNTIF('Evidencia výsledkov'!$C$4:C528,'Evidencia výsledkov'!C528)","v":"0"}]
[null,526,{"$f":"'Evidencia výsledkov'!C529&COUNTIF('Evidencia výsledkov'!$C$4:C529,'Evidencia výsledkov'!C529)","v":"0"}]
[null,527,{"$f":"'Evidencia výsledkov'!C530&COUNTIF('Evidencia výsledkov'!$C$4:C530,'Evidencia výsledkov'!C530)","v":"0"}]
[null,528,{"$f":"'Evidencia výsledkov'!C531&COUNTIF('Evidencia výsledkov'!$C$4:C531,'Evidencia výsledkov'!C531)","v":"0"}]
[null,529,{"$f":"'Evidencia výsledkov'!C532&COUNTIF('Evidencia výsledkov'!$C$4:C532,'Evidencia výsledkov'!C532)","v":"0"}]
[null,530,{"$f":"'Evidencia výsledkov'!C533&COUNTIF('Evidencia výsledkov'!$C$4:C533,'Evidencia výsledkov'!C533)","v":"0"}]
[null,531,{"$f":"'Evidencia výsledkov'!C534&COUNTIF('Evidencia výsledkov'!$C$4:C534,'Evidencia výsledkov'!C534)","v":"0"}]
[null,532,{"$f":"'Evidencia výsledkov'!C535&COUNTIF('Evidencia výsledkov'!$C$4:C535,'Evidencia výsledkov'!C535)","v":"0"}]
[null,533,{"$f":"'Evidencia výsledkov'!C536&COUNTIF('Evidencia výsledkov'!$C$4:C536,'Evidencia výsledkov'!C536)","v":"0"}]
[null,534,{"$f":"'Evidencia výsledkov'!C537&COUNTIF('Evidencia výsledkov'!$C$4:C537,'Evidencia výsledkov'!C537)","v":"0"}]
[null,535,{"$f":"'Evidencia výsledkov'!C538&COUNTIF('Evidencia výsledkov'!$C$4:C538,'Evidencia výsledkov'!C538)","v":"0"}]
[null,536,{"$f":"'Evidencia výsledkov'!C539&COUNTIF('Evidencia výsledkov'!$C$4:C539,'Evidencia výsledkov'!C539)","v":"0"}]
[null,537,{"$f":"'Evidencia výsledkov'!C540&COUNTIF('Evidencia výsledkov'!$C$4:C540,'Evidencia výsledkov'!C540)","v":"0"}]
[null,538,{"$f":"'Evidencia výsledkov'!C541&COUNTIF('Evidencia výsledkov'!$C$4:C541,'Evidencia výsledkov'!C541)","v":"0"}]
[null,539,{"$f":"'Evidencia výsledkov'!C542&COUNTIF('Evidencia výsledkov'!$C$4:C542,'Evidencia výsledkov'!C542)","v":"0"}]
[null,540,{"$f":"'Evidencia výsledkov'!C543&COUNTIF('Evidencia výsledkov'!$C$4:C543,'Evidencia výsledkov'!C543)","v":"0"}]
[null,541,{"$f":"'Evidencia výsledkov'!C544&COUNTIF('Evidencia výsledkov'!$C$4:C544,'Evidencia výsledkov'!C544)","v":"0"}]
[null,542,{"$f":"'Evidencia výsledkov'!C545&COUNTIF('Evidencia výsledkov'!$C$4:C545,'Evidencia výsledkov'!C545)","v":"0"}]
[null,543,{"$f":"'Evidencia výsledkov'!C546&COUNTIF('Evidencia výsledkov'!$C$4:C546,'Evidencia výsledkov'!C546)","v":"0"}]
[null,544,{"$f":"'Evidencia výsledkov'!C547&COUNTIF('Evidencia výsledkov'!$C$4:C547,'Evidencia výsledkov'!C547)","v":"0"}]
[null,545,{"$f":"'Evidencia výsledkov'!C548&COUNTIF('Evidencia výsledkov'!$C$4:C548,'Evidencia výsledkov'!C548)","v":"0"}]
[null,546,{"$f":"'Evidencia výsledkov'!C549&COUNTIF('Evidencia výsledkov'!$C$4:C549,'Evidencia výsledkov'!C549)","v":"0"}]
[null,547,{"$f":"'Evidencia výsledkov'!C550&COUNTIF('Evidencia výsledkov'!$C$4:C550,'Evidencia výsledkov'!C550)","v":"0"}]
[null,548,{"$f":"'Evidencia výsledkov'!C551&COUNTIF('Evidencia výsledkov'!$C$4:C551,'Evidencia výsledkov'!C551)","v":"0"}]
[null,549,{"$f":"'Evidencia výsledkov'!C552&COUNTIF('Evidencia výsledkov'!$C$4:C552,'Evidencia výsledkov'!C552)","v":"0"}]
[null,550,{"$f":"'Evidencia výsledkov'!C553&COUNTIF('Evidencia výsledkov'!$C$4:C553,'Evidencia výsledkov'!C553)","v":"0"}]
[null,551,{"$f":"'Evidencia výsledkov'!C554&COUNTIF('Evidencia výsledkov'!$C$4:C554,'Evidencia výsledkov'!C554)","v":"0"}]
[null,552,{"$f":"'Evidencia výsledkov'!C555&COUNTIF('Evidencia výsledkov'!$C$4:C555,'Evidencia výsledkov'!C555)","v":"0"}]
[null,553,{"$f":"'Evidencia výsledkov'!C556&COUNTIF('Evidencia výsledkov'!$C$4:C556,'Evidencia výsledkov'!C556)","v":"0"}]
[null,554,{"$f":"'Evidencia výsledkov'!C557&COUNTIF('Evidencia výsledkov'!$C$4:C557,'Evidencia výsledkov'!C557)","v":"0"}]
[null,555,{"$f":"'Evidencia výsledkov'!C558&COUNTIF('Evidencia výsledkov'!$C$4:C558,'Evidencia výsledkov'!C558)","v":"0"}]
[null,556,{"$f":"'Evidencia výsledkov'!C559&COUNTIF('Evidencia výsledkov'!$C$4:C559,'Evidencia výsledkov'!C559)","v":"0"}]
[null,557,{"$f":"'Evidencia výsledkov'!C560&COUNTIF('Evidencia výsledkov'!$C$4:C560,'Evidencia výsledkov'!C560)","v":"0"}]
[null,558,{"$f":"'Evidencia výsledkov'!C561&COUNTIF('Evidencia výsledkov'!$C$4:C561,'Evidencia výsledkov'!C561)","v":"0"}]
[null,559,{"$f":"'Evidencia výsledkov'!C562&COUNTIF('Evidencia výsledkov'!$C$4:C562,'Evidencia výsledkov'!C562)","v":"0"}]
[null,560,{"$f":"'Evidencia výsledkov'!C563&COUNTIF('Evidencia výsledkov'!$C$4:C563,'Evidencia výsledkov'!C563)","v":"0"}]
[null,561,{"$f":"'Evidencia výsledkov'!C564&COUNTIF('Evidencia výsledkov'!$C$4:C564,'Evidencia výsledkov'!C564)","v":"0"}]
[null,562,{"$f":"'Evidencia výsledkov'!C565&COUNTIF('Evidencia výsledkov'!$C$4:C565,'Evidencia výsledkov'!C565)","v":"0"}]
[null,563,{"$f":"'Evidencia výsledkov'!C566&COUNTIF('Evidencia výsledkov'!$C$4:C566,'Evidencia výsledkov'!C566)","v":"0"}]
[null,564,{"$f":"'Evidencia výsledkov'!C567&COUNTIF('Evidencia výsledkov'!$C$4:C567,'Evidencia výsledkov'!C567)","v":"0"}]
[null,565,{"$f":"'Evidencia výsledkov'!C568&COUNTIF('Evidencia výsledkov'!$C$4:C568,'Evidencia výsledkov'!C568)","v":"0"}]
[null,566,{"$f":"'Evidencia výsledkov'!C569&COUNTIF('Evidencia výsledkov'!$C$4:C569,'Evidencia výsledkov'!C569)","v":"0"}]
[null,567,{"$f":"'Evidencia výsledkov'!C570&COUNTIF('Evidencia výsledkov'!$C$4:C570,'Evidencia výsledkov'!C570)","v":"0"}]
[null,568,{"$f":"'Evidencia výsledkov'!C571&COUNTIF('Evidencia výsledkov'!$C$4:C571,'Evidencia výsledkov'!C571)","v":"0"}]
[null,569,{"$f":"'Evidencia výsledkov'!C572&COUNTIF('Evidencia výsledkov'!$C$4:C572,'Evidencia výsledkov'!C572)","v":"0"}]
[null,570,{"$f":"'Evidencia výsledkov'!C573&COUNTIF('Evidencia výsledkov'!$C$4:C573,'Evidencia výsledkov'!C573)","v":"0"}]
[null,571,{"$f":"'Evidencia výsledkov'!C574&COUNTIF('Evidencia výsledkov'!$C$4:C574,'Evidencia výsledkov'!C574)","v":"0"}]
[null,572,{"$f":"'Evidencia výsledkov'!C575&COUNTIF('Evidencia výsledkov'!$C$4:C575,'Evidencia výsledkov'!C575)","v":"0"}]
[null,573,{"$f":"'Evidencia výsledkov'!C576&COUNTIF('Evidencia výsledkov'!$C$4:C576,'Evidencia výsledkov'!C576)","v":"0"}]
[null,574,{"$f":"'Evidencia výsledkov'!C577&COUNTIF('Evidencia výsledkov'!$C$4:C577,'Evidencia výsledkov'!C577)","v":"0"}]
[null,575,{"$f":"'Evidencia výsledkov'!C578&COUNTIF('Evidencia výsledkov'!$C$4:C578,'Evidencia výsledkov'!C578)","v":"0"}]
[null,576,{"$f":"'Evidencia výsledkov'!C579&COUNTIF('Evidencia výsledkov'!$C$4:C579,'Evidencia výsledkov'!C579)","v":"0"}]
[null,577,{"$f":"'Evidencia výsledkov'!C580&COUNTIF('Evidencia výsledkov'!$C$4:C580,'Evidencia výsledkov'!C580)","v":"0"}]
[null,578,{"$f":"'Evidencia výsledkov'!C581&COUNTIF('Evidencia výsledkov'!$C$4:C581,'Evidencia výsledkov'!C581)","v":"0"}]
[null,579,{"$f":"'Evidencia výsledkov'!C582&COUNTIF('Evidencia výsledkov'!$C$4:C582,'Evidencia výsledkov'!C582)","v":"0"}]
[null,580,{"$f":"'Evidencia výsledkov'!C583&COUNTIF('Evidencia výsledkov'!$C$4:C583,'Evidencia výsledkov'!C583)","v":"0"}]
[null,581,{"$f":"'Evidencia výsledkov'!C584&COUNTIF('Evidencia výsledkov'!$C$4:C584,'Evidencia výsledkov'!C584)","v":"0"}]
[null,582,{"$f":"'Evidencia výsledkov'!C585&COUNTIF('Evidencia výsledkov'!$C$4:C585,'Evidencia výsledkov'!C585)","v":"0"}]
[null,583,{"$f":"'Evidencia výsledkov'!C586&COUNTIF('Evidencia výsledkov'!$C$4:C586,'Evidencia výsledkov'!C586)","v":"0"}]
[null,584,{"$f":"'Evidencia výsledkov'!C587&COUNTIF('Evidencia výsledkov'!$C$4:C587,'Evidencia výsledkov'!C587)","v":"0"}]
[null,585,{"$f":"'Evidencia výsledkov'!C588&COUNTIF('Evidencia výsledkov'!$C$4:C588,'Evidencia výsledkov'!C588)","v":"0"}]
[null,586,{"$f":"'Evidencia výsledkov'!C589&COUNTIF('Evidencia výsledkov'!$C$4:C589,'Evidencia výsledkov'!C589)","v":"0"}]
[null,587,{"$f":"'Evidencia výsledkov'!C590&COUNTIF('Evidencia výsledkov'!$C$4:C590,'Evidencia výsledkov'!C590)","v":"0"}]
[null,588,{"$f":"'Evidencia výsledkov'!C591&COUNTIF('Evidencia výsledkov'!$C$4:C591,'Evidencia výsledkov'!C591)","v":"0"}]
[null,589,{"$f":"'Evidencia výsledkov'!C592&COUNTIF('Evidencia výsledkov'!$C$4:C592,'Evidencia výsledkov'!C592)","v":"0"}]
[null,590,{"$f":"'Evidencia výsledkov'!C593&COUNTIF('Evidencia výsledkov'!$C$4:C593,'Evidencia výsledkov'!C593)","v":"0"}]
[null,591,{"$f":"'Evidencia výsledkov'!C594&COUNTIF('Evidencia výsledkov'!$C$4:C594,'Evidencia výsledkov'!C594)","v":"0"}]
[null,592,{"$f":"'Evidencia výsledkov'!C595&COUNTIF('Evidencia výsledkov'!$C$4:C595,'Evidencia výsledkov'!C595)","v":"0"}]
[null,593,{"$f":"'Evidencia výsledkov'!C596&COUNTIF('Evidencia výsledkov'!$C$4:C596,'Evidencia výsledkov'!C596)","v":"0"}]
[null,594,{"$f":"'Evidencia výsledkov'!C597&COUNTIF('Evidencia výsledkov'!$C$4:C597,'Evidencia výsledkov'!C597)","v":"0"}]
[null,595,{"$f":"'Evidencia výsledkov'!C598&COUNTIF('Evidencia výsledkov'!$C$4:C598,'Evidencia výsledkov'!C598)","v":"0"}]
[null,596,{"$f":"'Evidencia výsledkov'!C599&COUNTIF('Evidencia výsledkov'!$C$4:C599,'Evidencia výsledkov'!C599)","v":"0"}]
[null,597,{"$f":"'Evidencia výsledkov'!C600&COUNTIF('Evidencia výsledkov'!$C$4:C600,'Evidencia výsledkov'!C600)","v":"0"}]
[null,598,{"$f":"'Evidencia výsledkov'!C601&COUNTIF('Evidencia výsledkov'!$C$4:C601,'Evidencia výsledkov'!C601)","v":"0"}]
[null,599,{"$f":"'Evidencia výsledkov'!C602&COUNTIF('Evidencia výsledkov'!$C$4:C602,'Evidencia výsledkov'!C602)","v":"0"}]
[null,600,{"$f":"'Evidencia výsledkov'!C603&COUNTIF('Evidencia výsledkov'!$C$4:C603,'Evidencia výsledkov'!C603)","v":"0"}]
[null,601,{"$f":"'Evidencia výsledkov'!C604&COUNTIF('Evidencia výsledkov'!$C$4:C604,'Evidencia výsledkov'!C604)","v":"0"}]
[null,602,{"$f":"'Evidencia výsledkov'!C605&COUNTIF('Evidencia výsledkov'!$C$4:C605,'Evidencia výsledkov'!C605)","v":"0"}]
[null,603,{"$f":"'Evidencia výsledkov'!C606&COUNTIF('Evidencia výsledkov'!$C$4:C606,'Evidencia výsledkov'!C606)","v":"0"}]
[null,604,{"$f":"'Evidencia výsledkov'!C607&COUNTIF('Evidencia výsledkov'!$C$4:C607,'Evidencia výsledkov'!C607)","v":"0"}]
[null,605,{"$f":"'Evidencia výsledkov'!C608&COUNTIF('Evidencia výsledkov'!$C$4:C608,'Evidencia výsledkov'!C608)","v":"0"}]
[null,606,{"$f":"'Evidencia výsledkov'!C609&COUNTIF('Evidencia výsledkov'!$C$4:C609,'Evidencia výsledkov'!C609)","v":"0"}]
[null,607,{"$f":"'Evidencia výsledkov'!C610&COUNTIF('Evidencia výsledkov'!$C$4:C610,'Evidencia výsledkov'!C610)","v":"0"}]
[null,608,{"$f":"'Evidencia výsledkov'!C611&COUNTIF('Evidencia výsledkov'!$C$4:C611,'Evidencia výsledkov'!C611)","v":"0"}]
[null,609,{"$f":"'Evidencia výsledkov'!C612&COUNTIF('Evidencia výsledkov'!$C$4:C612,'Evidencia výsledkov'!C612)","v":"0"}]
[null,610,{"$f":"'Evidencia výsledkov'!C613&COUNTIF('Evidencia výsledkov'!$C$4:C613,'Evidencia výsledkov'!C613)","v":"0"}]
[null,611,{"$f":"'Evidencia výsledkov'!C614&COUNTIF('Evidencia výsledkov'!$C$4:C614,'Evidencia výsledkov'!C614)","v":"0"}]
[null,612,{"$f":"'Evidencia výsledkov'!C615&COUNTIF('Evidencia výsledkov'!$C$4:C615,'Evidencia výsledkov'!C615)","v":"0"}]
[null,613,{"$f":"'Evidencia výsledkov'!C616&COUNTIF('Evidencia výsledkov'!$C$4:C616,'Evidencia výsledkov'!C616)","v":"0"}]
[null,614,{"$f":"'Evidencia výsledkov'!C617&COUNTIF('Evidencia výsledkov'!$C$4:C617,'Evidencia výsledkov'!C617)","v":"0"}]
[null,615,{"$f":"'Evidencia výsledkov'!C618&COUNTIF('Evidencia výsledkov'!$C$4:C618,'Evidencia výsledkov'!C618)","v":"0"}]
[null,616,{"$f":"'Evidencia výsledkov'!C619&COUNTIF('Evidencia výsledkov'!$C$4:C619,'Evidencia výsledkov'!C619)","v":"0"}]
[null,617,{"$f":"'Evidencia výsledkov'!C620&COUNTIF('Evidencia výsledkov'!$C$4:C620,'Evidencia výsledkov'!C620)","v":"0"}]
[null,618,{"$f":"'Evidencia výsledkov'!C621&COUNTIF('Evidencia výsledkov'!$C$4:C621,'Evidencia výsledkov'!C621)","v":"0"}]
[null,619,{"$f":"'Evidencia výsledkov'!C622&COUNTIF('Evidencia výsledkov'!$C$4:C622,'Evidencia výsledkov'!C622)","v":"0"}]
[null,620,{"$f":"'Evidencia výsledkov'!C623&COUNTIF('Evidencia výsledkov'!$C$4:C623,'Evidencia výsledkov'!C623)","v":"0"}]
[null,621,{"$f":"'Evidencia výsledkov'!C624&COUNTIF('Evidencia výsledkov'!$C$4:C624,'Evidencia výsledkov'!C624)","v":"0"}]
[null,622,{"$f":"'Evidencia výsledkov'!C625&COUNTIF('Evidencia výsledkov'!$C$4:C625,'Evidencia výsledkov'!C625)","v":"0"}]
[null,623,{"$f":"'Evidencia výsledkov'!C626&COUNTIF('Evidencia výsledkov'!$C$4:C626,'Evidencia výsledkov'!C626)","v":"0"}]
[null,624,{"$f":"'Evidencia výsledkov'!C627&COUNTIF('Evidencia výsledkov'!$C$4:C627,'Evidencia výsledkov'!C627)","v":"0"}]
[null,625,{"$f":"'Evidencia výsledkov'!C628&COUNTIF('Evidencia výsledkov'!$C$4:C628,'Evidencia výsledkov'!C628)","v":"0"}]